{"text_format":"3","workbook":"xlsx","n_sheets":2,"sheets":["Jadual Kelas","Senarai Kelas"],"not_rendered":{"defined_names":13},"read":"whole","date_system":"1900"}

{"sheet":"Jadual Kelas","index":0,"n_rows":63,"n_cols":9,"rows_kept":63,"merged":[[0,1,1,5]]}
[null,"JADUAL KELAS",{"$nulls":4},"JADUAL MULA","SELANG MASA"]
[{"$nulls":6},"08:00:00","15 MIN",{"$f":"--LEFT(MinuteText,2)","v":15}]
[null,"MASA","AHAD","ISNIN","SELASA","RABU","KHAMIS","JUMAAT","SABTU"]
[null,{"$f":"ScheduleStart","v":"08:00:00"},{"$f":"IFERROR(INDEX(tblClassList[],MATCH(SUMPRODUCT((tblClassList[HARI]=tblSchedule[[#Headers],[AHAD]])*($B4>=tblClassList[MASA MULA])*($B4<=tblClassList[MASA TAMAT]),tblClassList[UNIQUE]),tblClassList[UNIQUE],0),2),0)","v":0},{"$f":"IFERROR(INDEX(tblClassList[],MATCH(SUMPRODUCT((tblClassList[HARI]=tblSchedule[[#Headers],[ISNIN]])*($B4>=tblClassList[MASA MULA])*($B4<=tblClassList[MASA TAMAT]),tblClassList[UNIQUE]),tblClassList[UNIQUE],0),2),0)","v":0},{"$f":"IFERROR(INDEX(tblClassList[],MATCH(SUMPRODUCT((tblClassList[HARI]=tblSchedule[[#Headers],[SELASA]])*($B4>=tblClassList[MASA MULA])*($B4<=tblClassList[MASA TAMAT]),tblClassList[UNIQUE]),tblClassList[UNIQUE],0),2),0)","v":0},{"$f":"IFERROR(INDEX(tblClassList[],MATCH(SUMPRODUCT((tblClassList[HARI]=tblSchedule[[#Headers],[RABU]])*($B4>=tblClassList[MASA MULA])*($B4<=tblClassList[MASA TAMAT]),tblClassList[UNIQUE]),tblClassList[UNIQUE],0),2),0)","v":0},{"$f":"IFERROR(INDEX(tblClassList[],MATCH(SUMPRODUCT((tblClassList[HARI]=tblSchedule[[#Headers],[KHAMIS]])*($B4>=tblClassList[MASA MULA])*($B4<=tblClassList[MASA TAMAT]),tblClassList[UNIQUE]),tblClassList[UNIQUE],0),2),0)","v":0},{"$f":"IFERROR(INDEX(tblClassList[],MATCH(SUMPRODUCT((tblClassList[HARI]=tblSchedule[[#Headers],[JUMAAT]])*($B4>=tblClassList[MASA MULA])*($B4<=tblClassList[MASA TAMAT]),tblClassList[UNIQUE]),tblClassList[UNIQUE],0),2),0)","v":0},{"$f":"IFERROR(INDEX(tblClassList[],MATCH(SUMPRODUCT((tblClassList[HARI]=tblSchedule[[#Headers],[SABTU]])*($B4>=tblClassList[MASA MULA])*($B4<=tblClassList[MASA TAMAT]),tblClassList[UNIQUE]),tblClassList[UNIQUE],0),2),0)","v":0}]
[null,{"$f":"B4+TIME(0,MinuteInterval,0)","v":"08:15:00"},{"$f":"IFERROR(INDEX(tblClassList[],MATCH(SUMPRODUCT((tblClassList[HARI]=tblSchedule[[#Headers],[AHAD]])*($B5>=tblClassList[MASA MULA])*($B5<=tblClassList[MASA TAMAT]),tblClassList[UNIQUE]),tblClassList[UNIQUE],0),2),0)","v":0},{"$f":"IFERROR(INDEX(tblClassList[],MATCH(SUMPRODUCT((tblClassList[HARI]=tblSchedule[[#Headers],[ISNIN]])*($B5>=tblClassList[MASA MULA])*($B5<=tblClassList[MASA TAMAT]),tblClassList[UNIQUE]),tblClassList[UNIQUE],0),2),0)","v":"MTH-113"},{"$f":"IFERROR(INDEX(tblClassList[],MATCH(SUMPRODUCT((tblClassList[HARI]=tblSchedule[[#Headers],[SELASA]])*($B5>=tblClassList[MASA MULA])*($B5<=tblClassList[MASA TAMAT]),tblClassList[UNIQUE]),tblClassList[UNIQUE],0),2),0)","v":0},{"$f":"IFERROR(INDEX(tblClassList[],MATCH(SUMPRODUCT((tblClassList[HARI]=tblSchedule[[#Headers],[RABU]])*($B5>=tblClassList[MASA MULA])*($B5<=tblClassList[MASA TAMAT]),tblClassList[UNIQUE]),tblClassList[UNIQUE],0),2),0)","v":"MTH-113"},{"$f":"IFERROR(INDEX(tblClassList[],MATCH(SUMPRODUCT((tblClassList[HARI]=tblSchedule[[#Headers],[KHAMIS]])*($B5>=tblClassList[MASA MULA])*($B5<=tblClassList[MASA TAMAT]),tblClassList[UNIQUE]),tblClassList[UNIQUE],0),2),0)","v":0},{"$f":"IFERROR(INDEX(tblClassList[],MATCH(SUMPRODUCT((tblClassList[HARI]=tblSchedule[[#Headers],[JUMAAT]])*($B5>=tblClassList[MASA MULA])*($B5<=tblClassList[MASA TAMAT]),tblClassList[UNIQUE]),tblClassList[UNIQUE],0),2),0)","v":"MTH-113"},{"$f":"IFERROR(INDEX(tblClassList[],MATCH(SUMPRODUCT((tblClassList[HARI]=tblSchedule[[#Headers],[SABTU]])*($B5>=tblClassList[MASA MULA])*($B5<=tblClassList[MASA TAMAT]),tblClassList[UNIQUE]),tblClassList[UNIQUE],0),2),0)","v":0}]
[null,"08:30:00",{"$f":"IFERROR(INDEX(tblClassList[],MATCH(SUMPRODUCT((tblClassList[HARI]=tblSchedule[[#Headers],[AHAD]])*($B6>=tblClassList[MASA MULA])*($B6<=tblClassList[MASA TAMAT]),tblClassList[UNIQUE]),tblClassList[UNIQUE],0),2),0)","v":0},{"$f":"IFERROR(INDEX(tblClassList[],MATCH(SUMPRODUCT((tblClassList[HARI]=tblSchedule[[#Headers],[ISNIN]])*($B6>=tblClassList[MASA MULA])*($B6<=tblClassList[MASA TAMAT]),tblClassList[UNIQUE]),tblClassList[UNIQUE],0),2),0)","v":"MTH-113"},{"$f":"IFERROR(INDEX(tblClassList[],MATCH(SUMPRODUCT((tblClassList[HARI]=tblSchedule[[#Headers],[SELASA]])*($B6>=tblClassList[MASA MULA])*($B6<=tblClassList[MASA TAMAT]),tblClassList[UNIQUE]),tblClassList[UNIQUE],0),2),0)","v":0},{"$f":"IFERROR(INDEX(tblClassList[],MATCH(SUMPRODUCT((tblClassList[HARI]=tblSchedule[[#Headers],[RABU]])*($B6>=tblClassList[MASA MULA])*($B6<=tblClassList[MASA TAMAT]),tblClassList[UNIQUE]),tblClassList[UNIQUE],0),2),0)","v":"MTH-113"},{"$f":"IFERROR(INDEX(tblClassList[],MATCH(SUMPRODUCT((tblClassList[HARI]=tblSchedule[[#Headers],[KHAMIS]])*($B6>=tblClassList[MASA MULA])*($B6<=tblClassList[MASA TAMAT]),tblClassList[UNIQUE]),tblClassList[UNIQUE],0),2),0)","v":0},{"$f":"IFERROR(INDEX(tblClassList[],MATCH(SUMPRODUCT((tblClassList[HARI]=tblSchedule[[#Headers],[JUMAAT]])*($B6>=tblClassList[MASA MULA])*($B6<=tblClassList[MASA TAMAT]),tblClassList[UNIQUE]),tblClassList[UNIQUE],0),2),0)","v":"MTH-113"},{"$f":"IFERROR(INDEX(tblClassList[],MATCH(SUMPRODUCT((tblClassList[HARI]=tblSchedule[[#Headers],[SABTU]])*($B6>=tblClassList[MASA MULA])*($B6<=tblClassList[MASA TAMAT]),tblClassList[UNIQUE]),tblClassList[UNIQUE],0),2),0)","v":0}]
[null,"08:45:00",{"$f":"IFERROR(INDEX(tblClassList[],MATCH(SUMPRODUCT((tblClassList[HARI]=tblSchedule[[#Headers],[AHAD]])*($B7>=tblClassList[MASA MULA])*($B7<=tblClassList[MASA TAMAT]),tblClassList[UNIQUE]),tblClassList[UNIQUE],0),2),0)","v":0},{"$f":"IFERROR(INDEX(tblClassList[],MATCH(SUMPRODUCT((tblClassList[HARI]=tblSchedule[[#Headers],[ISNIN]])*($B7>=tblClassList[MASA MULA])*($B7<=tblClassList[MASA TAMAT]),tblClassList[UNIQUE]),tblClassList[UNIQUE],0),2),0)","v":"MTH-113"},{"$f":"IFERROR(INDEX(tblClassList[],MATCH(SUMPRODUCT((tblClassList[HARI]=tblSchedule[[#Headers],[SELASA]])*($B7>=tblClassList[MASA MULA])*($B7<=tblClassList[MASA TAMAT]),tblClassList[UNIQUE]),tblClassList[UNIQUE],0),2),0)","v":0},{"$f":"IFERROR(INDEX(tblClassList[],MATCH(SUMPRODUCT((tblClassList[HARI]=tblSchedule[[#Headers],[RABU]])*($B7>=tblClassList[MASA MULA])*($B7<=tblClassList[MASA TAMAT]),tblClassList[UNIQUE]),tblClassList[UNIQUE],0),2),0)","v":"MTH-113"},{"$f":"IFERROR(INDEX(tblClassList[],MATCH(SUMPRODUCT((tblClassList[HARI]=tblSchedule[[#Headers],[KHAMIS]])*($B7>=tblClassList[MASA MULA])*($B7<=tblClassList[MASA TAMAT]),tblClassList[UNIQUE]),tblClassList[UNIQUE],0),2),0)","v":0},{"$f":"IFERROR(INDEX(tblClassList[],MATCH(SUMPRODUCT((tblClassList[HARI]=tblSchedule[[#Headers],[JUMAAT]])*($B7>=tblClassList[MASA MULA])*($B7<=tblClassList[MASA TAMAT]),tblClassList[UNIQUE]),tblClassList[UNIQUE],0),2),0)","v":"MTH-113"},{"$f":"IFERROR(INDEX(tblClassList[],MATCH(SUMPRODUCT((tblClassList[HARI]=tblSchedule[[#Headers],[SABTU]])*($B7>=tblClassList[MASA MULA])*($B7<=tblClassList[MASA TAMAT]),tblClassList[UNIQUE]),tblClassList[UNIQUE],0),2),0)","v":0}]
[null,"09:00:00",{"$f":"IFERROR(INDEX(tblClassList[],MATCH(SUMPRODUCT((tblClassList[HARI]=tblSchedule[[#Headers],[AHAD]])*($B8>=tblClassList[MASA MULA])*($B8<=tblClassList[MASA TAMAT]),tblClassList[UNIQUE]),tblClassList[UNIQUE],0),2),0)","v":0},{"$f":"IFERROR(INDEX(tblClassList[],MATCH(SUMPRODUCT((tblClassList[HARI]=tblSchedule[[#Headers],[ISNIN]])*($B8>=tblClassList[MASA MULA])*($B8<=tblClassList[MASA TAMAT]),tblClassList[UNIQUE]),tblClassList[UNIQUE],0),2),0)","v":"MTH-113"},{"$f":"IFERROR(INDEX(tblClassList[],MATCH(SUMPRODUCT((tblClassList[HARI]=tblSchedule[[#Headers],[SELASA]])*($B8>=tblClassList[MASA MULA])*($B8<=tblClassList[MASA TAMAT]),tblClassList[UNIQUE]),tblClassList[UNIQUE],0),2),0)","v":0},{"$f":"IFERROR(INDEX(tblClassList[],MATCH(SUMPRODUCT((tblClassList[HARI]=tblSchedule[[#Headers],[RABU]])*($B8>=tblClassList[MASA MULA])*($B8<=tblClassList[MASA TAMAT]),tblClassList[UNIQUE]),tblClassList[UNIQUE],0),2),0)","v":"MTH-113"},{"$f":"IFERROR(INDEX(tblClassList[],MATCH(SUMPRODUCT((tblClassList[HARI]=tblSchedule[[#Headers],[KHAMIS]])*($B8>=tblClassList[MASA MULA])*($B8<=tblClassList[MASA TAMAT]),tblClassList[UNIQUE]),tblClassList[UNIQUE],0),2),0)","v":0},{"$f":"IFERROR(INDEX(tblClassList[],MATCH(SUMPRODUCT((tblClassList[HARI]=tblSchedule[[#Headers],[JUMAAT]])*($B8>=tblClassList[MASA MULA])*($B8<=tblClassList[MASA TAMAT]),tblClassList[UNIQUE]),tblClassList[UNIQUE],0),2),0)","v":"MTH-113"},{"$f":"IFERROR(INDEX(tblClassList[],MATCH(SUMPRODUCT((tblClassList[HARI]=tblSchedule[[#Headers],[SABTU]])*($B8>=tblClassList[MASA MULA])*($B8<=tblClassList[MASA TAMAT]),tblClassList[UNIQUE]),tblClassList[UNIQUE],0),2),0)","v":0}]
[null,"09:15:00",{"$f":"IFERROR(INDEX(tblClassList[],MATCH(SUMPRODUCT((tblClassList[HARI]=tblSchedule[[#Headers],[AHAD]])*($B9>=tblClassList[MASA MULA])*($B9<=tblClassList[MASA TAMAT]),tblClassList[UNIQUE]),tblClassList[UNIQUE],0),2),0)","v":0},{"$f":"IFERROR(INDEX(tblClassList[],MATCH(SUMPRODUCT((tblClassList[HARI]=tblSchedule[[#Headers],[ISNIN]])*($B9>=tblClassList[MASA MULA])*($B9<=tblClassList[MASA TAMAT]),tblClassList[UNIQUE]),tblClassList[UNIQUE],0),2),0)","v":"MTH-113"},{"$f":"IFERROR(INDEX(tblClassList[],MATCH(SUMPRODUCT((tblClassList[HARI]=tblSchedule[[#Headers],[SELASA]])*($B9>=tblClassList[MASA MULA])*($B9<=tblClassList[MASA TAMAT]),tblClassList[UNIQUE]),tblClassList[UNIQUE],0),2),0)","v":0},{"$f":"IFERROR(INDEX(tblClassList[],MATCH(SUMPRODUCT((tblClassList[HARI]=tblSchedule[[#Headers],[RABU]])*($B9>=tblClassList[MASA MULA])*($B9<=tblClassList[MASA TAMAT]),tblClassList[UNIQUE]),tblClassList[UNIQUE],0),2),0)","v":"MTH-113"},{"$f":"IFERROR(INDEX(tblClassList[],MATCH(SUMPRODUCT((tblClassList[HARI]=tblSchedule[[#Headers],[KHAMIS]])*($B9>=tblClassList[MASA MULA])*($B9<=tblClassList[MASA TAMAT]),tblClassList[UNIQUE]),tblClassList[UNIQUE],0),2),0)","v":0},{"$f":"IFERROR(INDEX(tblClassList[],MATCH(SUMPRODUCT((tblClassList[HARI]=tblSchedule[[#Headers],[JUMAAT]])*($B9>=tblClassList[MASA MULA])*($B9<=tblClassList[MASA TAMAT]),tblClassList[UNIQUE]),tblClassList[UNIQUE],0),2),0)","v":"MTH-113"},{"$f":"IFERROR(INDEX(tblClassList[],MATCH(SUMPRODUCT((tblClassList[HARI]=tblSchedule[[#Headers],[SABTU]])*($B9>=tblClassList[MASA MULA])*($B9<=tblClassList[MASA TAMAT]),tblClassList[UNIQUE]),tblClassList[UNIQUE],0),2),0)","v":0}]
[null,"09:30:00",{"$f":"IFERROR(INDEX(tblClassList[],MATCH(SUMPRODUCT((tblClassList[HARI]=tblSchedule[[#Headers],[AHAD]])*($B10>=tblClassList[MASA MULA])*($B10<=tblClassList[MASA TAMAT]),tblClassList[UNIQUE]),tblClassList[UNIQUE],0),2),0)","v":0},{"$f":"IFERROR(INDEX(tblClassList[],MATCH(SUMPRODUCT((tblClassList[HARI]=tblSchedule[[#Headers],[ISNIN]])*($B10>=tblClassList[MASA MULA])*($B10<=tblClassList[MASA TAMAT]),tblClassList[UNIQUE]),tblClassList[UNIQUE],0),2),0)","v":0},{"$f":"IFERROR(INDEX(tblClassList[],MATCH(SUMPRODUCT((tblClassList[HARI]=tblSchedule[[#Headers],[SELASA]])*($B10>=tblClassList[MASA MULA])*($B10<=tblClassList[MASA TAMAT]),tblClassList[UNIQUE]),tblClassList[UNIQUE],0),2),0)","v":0},{"$f":"IFERROR(INDEX(tblClassList[],MATCH(SUMPRODUCT((tblClassList[HARI]=tblSchedule[[#Headers],[RABU]])*($B10>=tblClassList[MASA MULA])*($B10<=tblClassList[MASA TAMAT]),tblClassList[UNIQUE]),tblClassList[UNIQUE],0),2),0)","v":0},{"$f":"IFERROR(INDEX(tblClassList[],MATCH(SUMPRODUCT((tblClassList[HARI]=tblSchedule[[#Headers],[KHAMIS]])*($B10>=tblClassList[MASA MULA])*($B10<=tblClassList[MASA TAMAT]),tblClassList[UNIQUE]),tblClassList[UNIQUE],0),2),0)","v":0},{"$f":"IFERROR(INDEX(tblClassList[],MATCH(SUMPRODUCT((tblClassList[HARI]=tblSchedule[[#Headers],[JUMAAT]])*($B10>=tblClassList[MASA MULA])*($B10<=tblClassList[MASA TAMAT]),tblClassList[UNIQUE]),tblClassList[UNIQUE],0),2),0)","v":0},{"$f":"IFERROR(INDEX(tblClassList[],MATCH(SUMPRODUCT((tblClassList[HARI]=tblSchedule[[#Headers],[SABTU]])*($B10>=tblClassList[MASA MULA])*($B10<=tblClassList[MASA TAMAT]),tblClassList[UNIQUE]),tblClassList[UNIQUE],0),2),0)","v":0}]
[null,"09:45:00",{"$f":"IFERROR(INDEX(tblClassList[],MATCH(SUMPRODUCT((tblClassList[HARI]=tblSchedule[[#Headers],[AHAD]])*($B11>=tblClassList[MASA MULA])*($B11<=tblClassList[MASA TAMAT]),tblClassList[UNIQUE]),tblClassList[UNIQUE],0),2),0)","v":0},{"$f":"IFERROR(INDEX(tblClassList[],MATCH(SUMPRODUCT((tblClassList[HARI]=tblSchedule[[#Headers],[ISNIN]])*($B11>=tblClassList[MASA MULA])*($B11<=tblClassList[MASA TAMAT]),tblClassList[UNIQUE]),tblClassList[UNIQUE],0),2),0)","v":0},{"$f":"IFERROR(INDEX(tblClassList[],MATCH(SUMPRODUCT((tblClassList[HARI]=tblSchedule[[#Headers],[SELASA]])*($B11>=tblClassList[MASA MULA])*($B11<=tblClassList[MASA TAMAT]),tblClassList[UNIQUE]),tblClassList[UNIQUE],0),2),0)","v":0},{"$f":"IFERROR(INDEX(tblClassList[],MATCH(SUMPRODUCT((tblClassList[HARI]=tblSchedule[[#Headers],[RABU]])*($B11>=tblClassList[MASA MULA])*($B11<=tblClassList[MASA TAMAT]),tblClassList[UNIQUE]),tblClassList[UNIQUE],0),2),0)","v":0},{"$f":"IFERROR(INDEX(tblClassList[],MATCH(SUMPRODUCT((tblClassList[HARI]=tblSchedule[[#Headers],[KHAMIS]])*($B11>=tblClassList[MASA MULA])*($B11<=tblClassList[MASA TAMAT]),tblClassList[UNIQUE]),tblClassList[UNIQUE],0),2),0)","v":0},{"$f":"IFERROR(INDEX(tblClassList[],MATCH(SUMPRODUCT((tblClassList[HARI]=tblSchedule[[#Headers],[JUMAAT]])*($B11>=tblClassList[MASA MULA])*($B11<=tblClassList[MASA TAMAT]),tblClassList[UNIQUE]),tblClassList[UNIQUE],0),2),0)","v":0},{"$f":"IFERROR(INDEX(tblClassList[],MATCH(SUMPRODUCT((tblClassList[HARI]=tblSchedule[[#Headers],[SABTU]])*($B11>=tblClassList[MASA MULA])*($B11<=tblClassList[MASA TAMAT]),tblClassList[UNIQUE]),tblClassList[UNIQUE],0),2),0)","v":0}]
[null,"10:00:00",{"$f":"IFERROR(INDEX(tblClassList[],MATCH(SUMPRODUCT((tblClassList[HARI]=tblSchedule[[#Headers],[AHAD]])*($B12>=tblClassList[MASA MULA])*($B12<=tblClassList[MASA TAMAT]),tblClassList[UNIQUE]),tblClassList[UNIQUE],0),2),0)","v":0},{"$f":"IFERROR(INDEX(tblClassList[],MATCH(SUMPRODUCT((tblClassList[HARI]=tblSchedule[[#Headers],[ISNIN]])*($B12>=tblClassList[MASA MULA])*($B12<=tblClassList[MASA TAMAT]),tblClassList[UNIQUE]),tblClassList[UNIQUE],0),2),0)","v":0},{"$f":"IFERROR(INDEX(tblClassList[],MATCH(SUMPRODUCT((tblClassList[HARI]=tblSchedule[[#Headers],[SELASA]])*($B12>=tblClassList[MASA MULA])*($B12<=tblClassList[MASA TAMAT]),tblClassList[UNIQUE]),tblClassList[UNIQUE],0),2),0)","v":0},{"$f":"IFERROR(INDEX(tblClassList[],MATCH(SUMPRODUCT((tblClassList[HARI]=tblSchedule[[#Headers],[RABU]])*($B12>=tblClassList[MASA MULA])*($B12<=tblClassList[MASA TAMAT]),tblClassList[UNIQUE]),tblClassList[UNIQUE],0),2),0)","v":0},{"$f":"IFERROR(INDEX(tblClassList[],MATCH(SUMPRODUCT((tblClassList[HARI]=tblSchedule[[#Headers],[KHAMIS]])*($B12>=tblClassList[MASA MULA])*($B12<=tblClassList[MASA TAMAT]),tblClassList[UNIQUE]),tblClassList[UNIQUE],0),2),0)","v":0},{"$f":"IFERROR(INDEX(tblClassList[],MATCH(SUMPRODUCT((tblClassList[HARI]=tblSchedule[[#Headers],[JUMAAT]])*($B12>=tblClassList[MASA MULA])*($B12<=tblClassList[MASA TAMAT]),tblClassList[UNIQUE]),tblClassList[UNIQUE],0),2),0)","v":0},{"$f":"IFERROR(INDEX(tblClassList[],MATCH(SUMPRODUCT((tblClassList[HARI]=tblSchedule[[#Headers],[SABTU]])*($B12>=tblClassList[MASA MULA])*($B12<=tblClassList[MASA TAMAT]),tblClassList[UNIQUE]),tblClassList[UNIQUE],0),2),0)","v":0}]
[null,"10:15:00",{"$f":"IFERROR(INDEX(tblClassList[],MATCH(SUMPRODUCT((tblClassList[HARI]=tblSchedule[[#Headers],[AHAD]])*($B13>=tblClassList[MASA MULA])*($B13<=tblClassList[MASA TAMAT]),tblClassList[UNIQUE]),tblClassList[UNIQUE],0),2),0)","v":0},{"$f":"IFERROR(INDEX(tblClassList[],MATCH(SUMPRODUCT((tblClassList[HARI]=tblSchedule[[#Headers],[ISNIN]])*($B13>=tblClassList[MASA MULA])*($B13<=tblClassList[MASA TAMAT]),tblClassList[UNIQUE]),tblClassList[UNIQUE],0),2),0)","v":0},{"$f":"IFERROR(INDEX(tblClassList[],MATCH(SUMPRODUCT((tblClassList[HARI]=tblSchedule[[#Headers],[SELASA]])*($B13>=tblClassList[MASA MULA])*($B13<=tblClassList[MASA TAMAT]),tblClassList[UNIQUE]),tblClassList[UNIQUE],0),2),0)","v":0},{"$f":"IFERROR(INDEX(tblClassList[],MATCH(SUMPRODUCT((tblClassList[HARI]=tblSchedule[[#Headers],[RABU]])*($B13>=tblClassList[MASA MULA])*($B13<=tblClassList[MASA TAMAT]),tblClassList[UNIQUE]),tblClassList[UNIQUE],0),2),0)","v":0},{"$f":"IFERROR(INDEX(tblClassList[],MATCH(SUMPRODUCT((tblClassList[HARI]=tblSchedule[[#Headers],[KHAMIS]])*($B13>=tblClassList[MASA MULA])*($B13<=tblClassList[MASA TAMAT]),tblClassList[UNIQUE]),tblClassList[UNIQUE],0),2),0)","v":0},{"$f":"IFERROR(INDEX(tblClassList[],MATCH(SUMPRODUCT((tblClassList[HARI]=tblSchedule[[#Headers],[JUMAAT]])*($B13>=tblClassList[MASA MULA])*($B13<=tblClassList[MASA TAMAT]),tblClassList[UNIQUE]),tblClassList[UNIQUE],0),2),0)","v":0},{"$f":"IFERROR(INDEX(tblClassList[],MATCH(SUMPRODUCT((tblClassList[HARI]=tblSchedule[[#Headers],[SABTU]])*($B13>=tblClassList[MASA MULA])*($B13<=tblClassList[MASA TAMAT]),tblClassList[UNIQUE]),tblClassList[UNIQUE],0),2),0)","v":0}]
[null,"10:30:00",{"$f":"IFERROR(INDEX(tblClassList[],MATCH(SUMPRODUCT((tblClassList[HARI]=tblSchedule[[#Headers],[AHAD]])*($B14>=tblClassList[MASA MULA])*($B14<=tblClassList[MASA TAMAT]),tblClassList[UNIQUE]),tblClassList[UNIQUE],0),2),0)","v":0},{"$f":"IFERROR(INDEX(tblClassList[],MATCH(SUMPRODUCT((tblClassList[HARI]=tblSchedule[[#Headers],[ISNIN]])*($B14>=tblClassList[MASA MULA])*($B14<=tblClassList[MASA TAMAT]),tblClassList[UNIQUE]),tblClassList[UNIQUE],0),2),0)","v":0},{"$f":"IFERROR(INDEX(tblClassList[],MATCH(SUMPRODUCT((tblClassList[HARI]=tblSchedule[[#Headers],[SELASA]])*($B14>=tblClassList[MASA MULA])*($B14<=tblClassList[MASA TAMAT]),tblClassList[UNIQUE]),tblClassList[UNIQUE],0),2),0)","v":0},{"$f":"IFERROR(INDEX(tblClassList[],MATCH(SUMPRODUCT((tblClassList[HARI]=tblSchedule[[#Headers],[RABU]])*($B14>=tblClassList[MASA MULA])*($B14<=tblClassList[MASA TAMAT]),tblClassList[UNIQUE]),tblClassList[UNIQUE],0),2),0)","v":0},{"$f":"IFERROR(INDEX(tblClassList[],MATCH(SUMPRODUCT((tblClassList[HARI]=tblSchedule[[#Headers],[KHAMIS]])*($B14>=tblClassList[MASA MULA])*($B14<=tblClassList[MASA TAMAT]),tblClassList[UNIQUE]),tblClassList[UNIQUE],0),2),0)","v":0},{"$f":"IFERROR(INDEX(tblClassList[],MATCH(SUMPRODUCT((tblClassList[HARI]=tblSchedule[[#Headers],[JUMAAT]])*($B14>=tblClassList[MASA MULA])*($B14<=tblClassList[MASA TAMAT]),tblClassList[UNIQUE]),tblClassList[UNIQUE],0),2),0)","v":0},{"$f":"IFERROR(INDEX(tblClassList[],MATCH(SUMPRODUCT((tblClassList[HARI]=tblSchedule[[#Headers],[SABTU]])*($B14>=tblClassList[MASA MULA])*($B14<=tblClassList[MASA TAMAT]),tblClassList[UNIQUE]),tblClassList[UNIQUE],0),2),0)","v":0}]
[null,"10:45:00",{"$f":"IFERROR(INDEX(tblClassList[],MATCH(SUMPRODUCT((tblClassList[HARI]=tblSchedule[[#Headers],[AHAD]])*($B15>=tblClassList[MASA MULA])*($B15<=tblClassList[MASA TAMAT]),tblClassList[UNIQUE]),tblClassList[UNIQUE],0),2),0)","v":0},{"$f":"IFERROR(INDEX(tblClassList[],MATCH(SUMPRODUCT((tblClassList[HARI]=tblSchedule[[#Headers],[ISNIN]])*($B15>=tblClassList[MASA MULA])*($B15<=tblClassList[MASA TAMAT]),tblClassList[UNIQUE]),tblClassList[UNIQUE],0),2),0)","v":0},{"$f":"IFERROR(INDEX(tblClassList[],MATCH(SUMPRODUCT((tblClassList[HARI]=tblSchedule[[#Headers],[SELASA]])*($B15>=tblClassList[MASA MULA])*($B15<=tblClassList[MASA TAMAT]),tblClassList[UNIQUE]),tblClassList[UNIQUE],0),2),0)","v":0},{"$f":"IFERROR(INDEX(tblClassList[],MATCH(SUMPRODUCT((tblClassList[HARI]=tblSchedule[[#Headers],[RABU]])*($B15>=tblClassList[MASA MULA])*($B15<=tblClassList[MASA TAMAT]),tblClassList[UNIQUE]),tblClassList[UNIQUE],0),2),0)","v":0},{"$f":"IFERROR(INDEX(tblClassList[],MATCH(SUMPRODUCT((tblClassList[HARI]=tblSchedule[[#Headers],[KHAMIS]])*($B15>=tblClassList[MASA MULA])*($B15<=tblClassList[MASA TAMAT]),tblClassList[UNIQUE]),tblClassList[UNIQUE],0),2),0)","v":0},{"$f":"IFERROR(INDEX(tblClassList[],MATCH(SUMPRODUCT((tblClassList[HARI]=tblSchedule[[#Headers],[JUMAAT]])*($B15>=tblClassList[MASA MULA])*($B15<=tblClassList[MASA TAMAT]),tblClassList[UNIQUE]),tblClassList[UNIQUE],0),2),0)","v":0},{"$f":"IFERROR(INDEX(tblClassList[],MATCH(SUMPRODUCT((tblClassList[HARI]=tblSchedule[[#Headers],[SABTU]])*($B15>=tblClassList[MASA MULA])*($B15<=tblClassList[MASA TAMAT]),tblClassList[UNIQUE]),tblClassList[UNIQUE],0),2),0)","v":0}]
[null,"11:00:00",{"$f":"IFERROR(INDEX(tblClassList[],MATCH(SUMPRODUCT((tblClassList[HARI]=tblSchedule[[#Headers],[AHAD]])*($B16>=tblClassList[MASA MULA])*($B16<=tblClassList[MASA TAMAT]),tblClassList[UNIQUE]),tblClassList[UNIQUE],0),2),0)","v":0},{"$f":"IFERROR(INDEX(tblClassList[],MATCH(SUMPRODUCT((tblClassList[HARI]=tblSchedule[[#Headers],[ISNIN]])*($B16>=tblClassList[MASA MULA])*($B16<=tblClassList[MASA TAMAT]),tblClassList[UNIQUE]),tblClassList[UNIQUE],0),2),0)","v":0},{"$f":"IFERROR(INDEX(tblClassList[],MATCH(SUMPRODUCT((tblClassList[HARI]=tblSchedule[[#Headers],[SELASA]])*($B16>=tblClassList[MASA MULA])*($B16<=tblClassList[MASA TAMAT]),tblClassList[UNIQUE]),tblClassList[UNIQUE],0),2),0)","v":"HPE-295"},{"$f":"IFERROR(INDEX(tblClassList[],MATCH(SUMPRODUCT((tblClassList[HARI]=tblSchedule[[#Headers],[RABU]])*($B16>=tblClassList[MASA MULA])*($B16<=tblClassList[MASA TAMAT]),tblClassList[UNIQUE]),tblClassList[UNIQUE],0),2),0)","v":0},{"$f":"IFERROR(INDEX(tblClassList[],MATCH(SUMPRODUCT((tblClassList[HARI]=tblSchedule[[#Headers],[KHAMIS]])*($B16>=tblClassList[MASA MULA])*($B16<=tblClassList[MASA TAMAT]),tblClassList[UNIQUE]),tblClassList[UNIQUE],0),2),0)","v":"HPE-295"},{"$f":"IFERROR(INDEX(tblClassList[],MATCH(SUMPRODUCT((tblClassList[HARI]=tblSchedule[[#Headers],[JUMAAT]])*($B16>=tblClassList[MASA MULA])*($B16<=tblClassList[MASA TAMAT]),tblClassList[UNIQUE]),tblClassList[UNIQUE],0),2),0)","v":0},{"$f":"IFERROR(INDEX(tblClassList[],MATCH(SUMPRODUCT((tblClassList[HARI]=tblSchedule[[#Headers],[SABTU]])*($B16>=tblClassList[MASA MULA])*($B16<=tblClassList[MASA TAMAT]),tblClassList[UNIQUE]),tblClassList[UNIQUE],0),2),0)","v":0}]
[null,"11:15:00",{"$f":"IFERROR(INDEX(tblClassList[],MATCH(SUMPRODUCT((tblClassList[HARI]=tblSchedule[[#Headers],[AHAD]])*($B17>=tblClassList[MASA MULA])*($B17<=tblClassList[MASA TAMAT]),tblClassList[UNIQUE]),tblClassList[UNIQUE],0),2),0)","v":0},{"$f":"IFERROR(INDEX(tblClassList[],MATCH(SUMPRODUCT((tblClassList[HARI]=tblSchedule[[#Headers],[ISNIN]])*($B17>=tblClassList[MASA MULA])*($B17<=tblClassList[MASA TAMAT]),tblClassList[UNIQUE]),tblClassList[UNIQUE],0),2),0)","v":0},{"$f":"IFERROR(INDEX(tblClassList[],MATCH(SUMPRODUCT((tblClassList[HARI]=tblSchedule[[#Headers],[SELASA]])*($B17>=tblClassList[MASA MULA])*($B17<=tblClassList[MASA TAMAT]),tblClassList[UNIQUE]),tblClassList[UNIQUE],0),2),0)","v":"HPE-295"},{"$f":"IFERROR(INDEX(tblClassList[],MATCH(SUMPRODUCT((tblClassList[HARI]=tblSchedule[[#Headers],[RABU]])*($B17>=tblClassList[MASA MULA])*($B17<=tblClassList[MASA TAMAT]),tblClassList[UNIQUE]),tblClassList[UNIQUE],0),2),0)","v":0},{"$f":"IFERROR(INDEX(tblClassList[],MATCH(SUMPRODUCT((tblClassList[HARI]=tblSchedule[[#Headers],[KHAMIS]])*($B17>=tblClassList[MASA MULA])*($B17<=tblClassList[MASA TAMAT]),tblClassList[UNIQUE]),tblClassList[UNIQUE],0),2),0)","v":"HPE-295"},{"$f":"IFERROR(INDEX(tblClassList[],MATCH(SUMPRODUCT((tblClassList[HARI]=tblSchedule[[#Headers],[JUMAAT]])*($B17>=tblClassList[MASA MULA])*($B17<=tblClassList[MASA TAMAT]),tblClassList[UNIQUE]),tblClassList[UNIQUE],0),2),0)","v":0},{"$f":"IFERROR(INDEX(tblClassList[],MATCH(SUMPRODUCT((tblClassList[HARI]=tblSchedule[[#Headers],[SABTU]])*($B17>=tblClassList[MASA MULA])*($B17<=tblClassList[MASA TAMAT]),tblClassList[UNIQUE]),tblClassList[UNIQUE],0),2),0)","v":0}]
[null,"11:30:00",{"$f":"IFERROR(INDEX(tblClassList[],MATCH(SUMPRODUCT((tblClassList[HARI]=tblSchedule[[#Headers],[AHAD]])*($B18>=tblClassList[MASA MULA])*($B18<=tblClassList[MASA TAMAT]),tblClassList[UNIQUE]),tblClassList[UNIQUE],0),2),0)","v":0},{"$f":"IFERROR(INDEX(tblClassList[],MATCH(SUMPRODUCT((tblClassList[HARI]=tblSchedule[[#Headers],[ISNIN]])*($B18>=tblClassList[MASA MULA])*($B18<=tblClassList[MASA TAMAT]),tblClassList[UNIQUE]),tblClassList[UNIQUE],0),2),0)","v":0},{"$f":"IFERROR(INDEX(tblClassList[],MATCH(SUMPRODUCT((tblClassList[HARI]=tblSchedule[[#Headers],[SELASA]])*($B18>=tblClassList[MASA MULA])*($B18<=tblClassList[MASA TAMAT]),tblClassList[UNIQUE]),tblClassList[UNIQUE],0),2),0)","v":"HPE-295"},{"$f":"IFERROR(INDEX(tblClassList[],MATCH(SUMPRODUCT((tblClassList[HARI]=tblSchedule[[#Headers],[RABU]])*($B18>=tblClassList[MASA MULA])*($B18<=tblClassList[MASA TAMAT]),tblClassList[UNIQUE]),tblClassList[UNIQUE],0),2),0)","v":0},{"$f":"IFERROR(INDEX(tblClassList[],MATCH(SUMPRODUCT((tblClassList[HARI]=tblSchedule[[#Headers],[KHAMIS]])*($B18>=tblClassList[MASA MULA])*($B18<=tblClassList[MASA TAMAT]),tblClassList[UNIQUE]),tblClassList[UNIQUE],0),2),0)","v":"HPE-295"},{"$f":"IFERROR(INDEX(tblClassList[],MATCH(SUMPRODUCT((tblClassList[HARI]=tblSchedule[[#Headers],[JUMAAT]])*($B18>=tblClassList[MASA MULA])*($B18<=tblClassList[MASA TAMAT]),tblClassList[UNIQUE]),tblClassList[UNIQUE],0),2),0)","v":0},{"$f":"IFERROR(INDEX(tblClassList[],MATCH(SUMPRODUCT((tblClassList[HARI]=tblSchedule[[#Headers],[SABTU]])*($B18>=tblClassList[MASA MULA])*($B18<=tblClassList[MASA TAMAT]),tblClassList[UNIQUE]),tblClassList[UNIQUE],0),2),0)","v":0}]
[null,"11:45:00",{"$f":"IFERROR(INDEX(tblClassList[],MATCH(SUMPRODUCT((tblClassList[HARI]=tblSchedule[[#Headers],[AHAD]])*($B19>=tblClassList[MASA MULA])*($B19<=tblClassList[MASA TAMAT]),tblClassList[UNIQUE]),tblClassList[UNIQUE],0),2),0)","v":0},{"$f":"IFERROR(INDEX(tblClassList[],MATCH(SUMPRODUCT((tblClassList[HARI]=tblSchedule[[#Headers],[ISNIN]])*($B19>=tblClassList[MASA MULA])*($B19<=tblClassList[MASA TAMAT]),tblClassList[UNIQUE]),tblClassList[UNIQUE],0),2),0)","v":0},{"$f":"IFERROR(INDEX(tblClassList[],MATCH(SUMPRODUCT((tblClassList[HARI]=tblSchedule[[#Headers],[SELASA]])*($B19>=tblClassList[MASA MULA])*($B19<=tblClassList[MASA TAMAT]),tblClassList[UNIQUE]),tblClassList[UNIQUE],0),2),0)","v":"HPE-295"},{"$f":"IFERROR(INDEX(tblClassList[],MATCH(SUMPRODUCT((tblClassList[HARI]=tblSchedule[[#Headers],[RABU]])*($B19>=tblClassList[MASA MULA])*($B19<=tblClassList[MASA TAMAT]),tblClassList[UNIQUE]),tblClassList[UNIQUE],0),2),0)","v":0},{"$f":"IFERROR(INDEX(tblClassList[],MATCH(SUMPRODUCT((tblClassList[HARI]=tblSchedule[[#Headers],[KHAMIS]])*($B19>=tblClassList[MASA MULA])*($B19<=tblClassList[MASA TAMAT]),tblClassList[UNIQUE]),tblClassList[UNIQUE],0),2),0)","v":"HPE-295"},{"$f":"IFERROR(INDEX(tblClassList[],MATCH(SUMPRODUCT((tblClassList[HARI]=tblSchedule[[#Headers],[JUMAAT]])*($B19>=tblClassList[MASA MULA])*($B19<=tblClassList[MASA TAMAT]),tblClassList[UNIQUE]),tblClassList[UNIQUE],0),2),0)","v":0},{"$f":"IFERROR(INDEX(tblClassList[],MATCH(SUMPRODUCT((tblClassList[HARI]=tblSchedule[[#Headers],[SABTU]])*($B19>=tblClassList[MASA MULA])*($B19<=tblClassList[MASA TAMAT]),tblClassList[UNIQUE]),tblClassList[UNIQUE],0),2),0)","v":0}]
[null,"12:00:00",{"$f":"IFERROR(INDEX(tblClassList[],MATCH(SUMPRODUCT((tblClassList[HARI]=tblSchedule[[#Headers],[AHAD]])*($B20>=tblClassList[MASA MULA])*($B20<=tblClassList[MASA TAMAT]),tblClassList[UNIQUE]),tblClassList[UNIQUE],0),2),0)","v":0},{"$f":"IFERROR(INDEX(tblClassList[],MATCH(SUMPRODUCT((tblClassList[HARI]=tblSchedule[[#Headers],[ISNIN]])*($B20>=tblClassList[MASA MULA])*($B20<=tblClassList[MASA TAMAT]),tblClassList[UNIQUE]),tblClassList[UNIQUE],0),2),0)","v":0},{"$f":"IFERROR(INDEX(tblClassList[],MATCH(SUMPRODUCT((tblClassList[HARI]=tblSchedule[[#Headers],[SELASA]])*($B20>=tblClassList[MASA MULA])*($B20<=tblClassList[MASA TAMAT]),tblClassList[UNIQUE]),tblClassList[UNIQUE],0),2),0)","v":"HPE-295"},{"$f":"IFERROR(INDEX(tblClassList[],MATCH(SUMPRODUCT((tblClassList[HARI]=tblSchedule[[#Headers],[RABU]])*($B20>=tblClassList[MASA MULA])*($B20<=tblClassList[MASA TAMAT]),tblClassList[UNIQUE]),tblClassList[UNIQUE],0),2),0)","v":0},{"$f":"IFERROR(INDEX(tblClassList[],MATCH(SUMPRODUCT((tblClassList[HARI]=tblSchedule[[#Headers],[KHAMIS]])*($B20>=tblClassList[MASA MULA])*($B20<=tblClassList[MASA TAMAT]),tblClassList[UNIQUE]),tblClassList[UNIQUE],0),2),0)","v":"HPE-295"},{"$f":"IFERROR(INDEX(tblClassList[],MATCH(SUMPRODUCT((tblClassList[HARI]=tblSchedule[[#Headers],[JUMAAT]])*($B20>=tblClassList[MASA MULA])*($B20<=tblClassList[MASA TAMAT]),tblClassList[UNIQUE]),tblClassList[UNIQUE],0),2),0)","v":0},{"$f":"IFERROR(INDEX(tblClassList[],MATCH(SUMPRODUCT((tblClassList[HARI]=tblSchedule[[#Headers],[SABTU]])*($B20>=tblClassList[MASA MULA])*($B20<=tblClassList[MASA TAMAT]),tblClassList[UNIQUE]),tblClassList[UNIQUE],0),2),0)","v":0}]
[null,"12:15:00",{"$f":"IFERROR(INDEX(tblClassList[],MATCH(SUMPRODUCT((tblClassList[HARI]=tblSchedule[[#Headers],[AHAD]])*($B21>=tblClassList[MASA MULA])*($B21<=tblClassList[MASA TAMAT]),tblClassList[UNIQUE]),tblClassList[UNIQUE],0),2),0)","v":0},{"$f":"IFERROR(INDEX(tblClassList[],MATCH(SUMPRODUCT((tblClassList[HARI]=tblSchedule[[#Headers],[ISNIN]])*($B21>=tblClassList[MASA MULA])*($B21<=tblClassList[MASA TAMAT]),tblClassList[UNIQUE]),tblClassList[UNIQUE],0),2),0)","v":0},{"$f":"IFERROR(INDEX(tblClassList[],MATCH(SUMPRODUCT((tblClassList[HARI]=tblSchedule[[#Headers],[SELASA]])*($B21>=tblClassList[MASA MULA])*($B21<=tblClassList[MASA TAMAT]),tblClassList[UNIQUE]),tblClassList[UNIQUE],0),2),0)","v":0},{"$f":"IFERROR(INDEX(tblClassList[],MATCH(SUMPRODUCT((tblClassList[HARI]=tblSchedule[[#Headers],[RABU]])*($B21>=tblClassList[MASA MULA])*($B21<=tblClassList[MASA TAMAT]),tblClassList[UNIQUE]),tblClassList[UNIQUE],0),2),0)","v":0},{"$f":"IFERROR(INDEX(tblClassList[],MATCH(SUMPRODUCT((tblClassList[HARI]=tblSchedule[[#Headers],[KHAMIS]])*($B21>=tblClassList[MASA MULA])*($B21<=tblClassList[MASA TAMAT]),tblClassList[UNIQUE]),tblClassList[UNIQUE],0),2),0)","v":0},{"$f":"IFERROR(INDEX(tblClassList[],MATCH(SUMPRODUCT((tblClassList[HARI]=tblSchedule[[#Headers],[JUMAAT]])*($B21>=tblClassList[MASA MULA])*($B21<=tblClassList[MASA TAMAT]),tblClassList[UNIQUE]),tblClassList[UNIQUE],0),2),0)","v":0},{"$f":"IFERROR(INDEX(tblClassList[],MATCH(SUMPRODUCT((tblClassList[HARI]=tblSchedule[[#Headers],[SABTU]])*($B21>=tblClassList[MASA MULA])*($B21<=tblClassList[MASA TAMAT]),tblClassList[UNIQUE]),tblClassList[UNIQUE],0),2),0)","v":0}]
[null,"12:30:00",{"$f":"IFERROR(INDEX(tblClassList[],MATCH(SUMPRODUCT((tblClassList[HARI]=tblSchedule[[#Headers],[AHAD]])*($B22>=tblClassList[MASA MULA])*($B22<=tblClassList[MASA TAMAT]),tblClassList[UNIQUE]),tblClassList[UNIQUE],0),2),0)","v":0},{"$f":"IFERROR(INDEX(tblClassList[],MATCH(SUMPRODUCT((tblClassList[HARI]=tblSchedule[[#Headers],[ISNIN]])*($B22>=tblClassList[MASA MULA])*($B22<=tblClassList[MASA TAMAT]),tblClassList[UNIQUE]),tblClassList[UNIQUE],0),2),0)","v":0},{"$f":"IFERROR(INDEX(tblClassList[],MATCH(SUMPRODUCT((tblClassList[HARI]=tblSchedule[[#Headers],[SELASA]])*($B22>=tblClassList[MASA MULA])*($B22<=tblClassList[MASA TAMAT]),tblClassList[UNIQUE]),tblClassList[UNIQUE],0),2),0)","v":0},{"$f":"IFERROR(INDEX(tblClassList[],MATCH(SUMPRODUCT((tblClassList[HARI]=tblSchedule[[#Headers],[RABU]])*($B22>=tblClassList[MASA MULA])*($B22<=tblClassList[MASA TAMAT]),tblClassList[UNIQUE]),tblClassList[UNIQUE],0),2),0)","v":0},{"$f":"IFERROR(INDEX(tblClassList[],MATCH(SUMPRODUCT((tblClassList[HARI]=tblSchedule[[#Headers],[KHAMIS]])*($B22>=tblClassList[MASA MULA])*($B22<=tblClassList[MASA TAMAT]),tblClassList[UNIQUE]),tblClassList[UNIQUE],0),2),0)","v":0},{"$f":"IFERROR(INDEX(tblClassList[],MATCH(SUMPRODUCT((tblClassList[HARI]=tblSchedule[[#Headers],[JUMAAT]])*($B22>=tblClassList[MASA MULA])*($B22<=tblClassList[MASA TAMAT]),tblClassList[UNIQUE]),tblClassList[UNIQUE],0),2),0)","v":0},{"$f":"IFERROR(INDEX(tblClassList[],MATCH(SUMPRODUCT((tblClassList[HARI]=tblSchedule[[#Headers],[SABTU]])*($B22>=tblClassList[MASA MULA])*($B22<=tblClassList[MASA TAMAT]),tblClassList[UNIQUE]),tblClassList[UNIQUE],0),2),0)","v":0}]
[null,"12:45:00",{"$f":"IFERROR(INDEX(tblClassList[],MATCH(SUMPRODUCT((tblClassList[HARI]=tblSchedule[[#Headers],[AHAD]])*($B23>=tblClassList[MASA MULA])*($B23<=tblClassList[MASA TAMAT]),tblClassList[UNIQUE]),tblClassList[UNIQUE],0),2),0)","v":0},{"$f":"IFERROR(INDEX(tblClassList[],MATCH(SUMPRODUCT((tblClassList[HARI]=tblSchedule[[#Headers],[ISNIN]])*($B23>=tblClassList[MASA MULA])*($B23<=tblClassList[MASA TAMAT]),tblClassList[UNIQUE]),tblClassList[UNIQUE],0),2),0)","v":0},{"$f":"IFERROR(INDEX(tblClassList[],MATCH(SUMPRODUCT((tblClassList[HARI]=tblSchedule[[#Headers],[SELASA]])*($B23>=tblClassList[MASA MULA])*($B23<=tblClassList[MASA TAMAT]),tblClassList[UNIQUE]),tblClassList[UNIQUE],0),2),0)","v":0},{"$f":"IFERROR(INDEX(tblClassList[],MATCH(SUMPRODUCT((tblClassList[HARI]=tblSchedule[[#Headers],[RABU]])*($B23>=tblClassList[MASA MULA])*($B23<=tblClassList[MASA TAMAT]),tblClassList[UNIQUE]),tblClassList[UNIQUE],0),2),0)","v":0},{"$f":"IFERROR(INDEX(tblClassList[],MATCH(SUMPRODUCT((tblClassList[HARI]=tblSchedule[[#Headers],[KHAMIS]])*($B23>=tblClassList[MASA MULA])*($B23<=tblClassList[MASA TAMAT]),tblClassList[UNIQUE]),tblClassList[UNIQUE],0),2),0)","v":0},{"$f":"IFERROR(INDEX(tblClassList[],MATCH(SUMPRODUCT((tblClassList[HARI]=tblSchedule[[#Headers],[JUMAAT]])*($B23>=tblClassList[MASA MULA])*($B23<=tblClassList[MASA TAMAT]),tblClassList[UNIQUE]),tblClassList[UNIQUE],0),2),0)","v":0},{"$f":"IFERROR(INDEX(tblClassList[],MATCH(SUMPRODUCT((tblClassList[HARI]=tblSchedule[[#Headers],[SABTU]])*($B23>=tblClassList[MASA MULA])*($B23<=tblClassList[MASA TAMAT]),tblClassList[UNIQUE]),tblClassList[UNIQUE],0),2),0)","v":0}]
[null,"13:00:00",{"$f":"IFERROR(INDEX(tblClassList[],MATCH(SUMPRODUCT((tblClassList[HARI]=tblSchedule[[#Headers],[AHAD]])*($B24>=tblClassList[MASA MULA])*($B24<=tblClassList[MASA TAMAT]),tblClassList[UNIQUE]),tblClassList[UNIQUE],0),2),0)","v":0},{"$f":"IFERROR(INDEX(tblClassList[],MATCH(SUMPRODUCT((tblClassList[HARI]=tblSchedule[[#Headers],[ISNIN]])*($B24>=tblClassList[MASA MULA])*($B24<=tblClassList[MASA TAMAT]),tblClassList[UNIQUE]),tblClassList[UNIQUE],0),2),0)","v":"WR-121"},{"$f":"IFERROR(INDEX(tblClassList[],MATCH(SUMPRODUCT((tblClassList[HARI]=tblSchedule[[#Headers],[SELASA]])*($B24>=tblClassList[MASA MULA])*($B24<=tblClassList[MASA TAMAT]),tblClassList[UNIQUE]),tblClassList[UNIQUE],0),2),0)","v":0},{"$f":"IFERROR(INDEX(tblClassList[],MATCH(SUMPRODUCT((tblClassList[HARI]=tblSchedule[[#Headers],[RABU]])*($B24>=tblClassList[MASA MULA])*($B24<=tblClassList[MASA TAMAT]),tblClassList[UNIQUE]),tblClassList[UNIQUE],0),2),0)","v":"WR-121"},{"$f":"IFERROR(INDEX(tblClassList[],MATCH(SUMPRODUCT((tblClassList[HARI]=tblSchedule[[#Headers],[KHAMIS]])*($B24>=tblClassList[MASA MULA])*($B24<=tblClassList[MASA TAMAT]),tblClassList[UNIQUE]),tblClassList[UNIQUE],0),2),0)","v":0},{"$f":"IFERROR(INDEX(tblClassList[],MATCH(SUMPRODUCT((tblClassList[HARI]=tblSchedule[[#Headers],[JUMAAT]])*($B24>=tblClassList[MASA MULA])*($B24<=tblClassList[MASA TAMAT]),tblClassList[UNIQUE]),tblClassList[UNIQUE],0),2),0)","v":0},{"$f":"IFERROR(INDEX(tblClassList[],MATCH(SUMPRODUCT((tblClassList[HARI]=tblSchedule[[#Headers],[SABTU]])*($B24>=tblClassList[MASA MULA])*($B24<=tblClassList[MASA TAMAT]),tblClassList[UNIQUE]),tblClassList[UNIQUE],0),2),0)","v":0}]
[null,"13:15:00",{"$f":"IFERROR(INDEX(tblClassList[],MATCH(SUMPRODUCT((tblClassList[HARI]=tblSchedule[[#Headers],[AHAD]])*($B25>=tblClassList[MASA MULA])*($B25<=tblClassList[MASA TAMAT]),tblClassList[UNIQUE]),tblClassList[UNIQUE],0),2),0)","v":0},{"$f":"IFERROR(INDEX(tblClassList[],MATCH(SUMPRODUCT((tblClassList[HARI]=tblSchedule[[#Headers],[ISNIN]])*($B25>=tblClassList[MASA MULA])*($B25<=tblClassList[MASA TAMAT]),tblClassList[UNIQUE]),tblClassList[UNIQUE],0),2),0)","v":"WR-121"},{"$f":"IFERROR(INDEX(tblClassList[],MATCH(SUMPRODUCT((tblClassList[HARI]=tblSchedule[[#Headers],[SELASA]])*($B25>=tblClassList[MASA MULA])*($B25<=tblClassList[MASA TAMAT]),tblClassList[UNIQUE]),tblClassList[UNIQUE],0),2),0)","v":0},{"$f":"IFERROR(INDEX(tblClassList[],MATCH(SUMPRODUCT((tblClassList[HARI]=tblSchedule[[#Headers],[RABU]])*($B25>=tblClassList[MASA MULA])*($B25<=tblClassList[MASA TAMAT]),tblClassList[UNIQUE]),tblClassList[UNIQUE],0),2),0)","v":"WR-121"},{"$f":"IFERROR(INDEX(tblClassList[],MATCH(SUMPRODUCT((tblClassList[HARI]=tblSchedule[[#Headers],[KHAMIS]])*($B25>=tblClassList[MASA MULA])*($B25<=tblClassList[MASA TAMAT]),tblClassList[UNIQUE]),tblClassList[UNIQUE],0),2),0)","v":0},{"$f":"IFERROR(INDEX(tblClassList[],MATCH(SUMPRODUCT((tblClassList[HARI]=tblSchedule[[#Headers],[JUMAAT]])*($B25>=tblClassList[MASA MULA])*($B25<=tblClassList[MASA TAMAT]),tblClassList[UNIQUE]),tblClassList[UNIQUE],0),2),0)","v":0},{"$f":"IFERROR(INDEX(tblClassList[],MATCH(SUMPRODUCT((tblClassList[HARI]=tblSchedule[[#Headers],[SABTU]])*($B25>=tblClassList[MASA MULA])*($B25<=tblClassList[MASA TAMAT]),tblClassList[UNIQUE]),tblClassList[UNIQUE],0),2),0)","v":0}]
[null,"13:30:00",{"$f":"IFERROR(INDEX(tblClassList[],MATCH(SUMPRODUCT((tblClassList[HARI]=tblSchedule[[#Headers],[AHAD]])*($B26>=tblClassList[MASA MULA])*($B26<=tblClassList[MASA TAMAT]),tblClassList[UNIQUE]),tblClassList[UNIQUE],0),2),0)","v":0},{"$f":"IFERROR(INDEX(tblClassList[],MATCH(SUMPRODUCT((tblClassList[HARI]=tblSchedule[[#Headers],[ISNIN]])*($B26>=tblClassList[MASA MULA])*($B26<=tblClassList[MASA TAMAT]),tblClassList[UNIQUE]),tblClassList[UNIQUE],0),2),0)","v":"WR-121"},{"$f":"IFERROR(INDEX(tblClassList[],MATCH(SUMPRODUCT((tblClassList[HARI]=tblSchedule[[#Headers],[SELASA]])*($B26>=tblClassList[MASA MULA])*($B26<=tblClassList[MASA TAMAT]),tblClassList[UNIQUE]),tblClassList[UNIQUE],0),2),0)","v":0},{"$f":"IFERROR(INDEX(tblClassList[],MATCH(SUMPRODUCT((tblClassList[HARI]=tblSchedule[[#Headers],[RABU]])*($B26>=tblClassList[MASA MULA])*($B26<=tblClassList[MASA TAMAT]),tblClassList[UNIQUE]),tblClassList[UNIQUE],0),2),0)","v":"WR-121"},{"$f":"IFERROR(INDEX(tblClassList[],MATCH(SUMPRODUCT((tblClassList[HARI]=tblSchedule[[#Headers],[KHAMIS]])*($B26>=tblClassList[MASA MULA])*($B26<=tblClassList[MASA TAMAT]),tblClassList[UNIQUE]),tblClassList[UNIQUE],0),2),0)","v":0},{"$f":"IFERROR(INDEX(tblClassList[],MATCH(SUMPRODUCT((tblClassList[HARI]=tblSchedule[[#Headers],[JUMAAT]])*($B26>=tblClassList[MASA MULA])*($B26<=tblClassList[MASA TAMAT]),tblClassList[UNIQUE]),tblClassList[UNIQUE],0),2),0)","v":0},{"$f":"IFERROR(INDEX(tblClassList[],MATCH(SUMPRODUCT((tblClassList[HARI]=tblSchedule[[#Headers],[SABTU]])*($B26>=tblClassList[MASA MULA])*($B26<=tblClassList[MASA TAMAT]),tblClassList[UNIQUE]),tblClassList[UNIQUE],0),2),0)","v":0}]
[null,"13:45:00",{"$f":"IFERROR(INDEX(tblClassList[],MATCH(SUMPRODUCT((tblClassList[HARI]=tblSchedule[[#Headers],[AHAD]])*($B27>=tblClassList[MASA MULA])*($B27<=tblClassList[MASA TAMAT]),tblClassList[UNIQUE]),tblClassList[UNIQUE],0),2),0)","v":0},{"$f":"IFERROR(INDEX(tblClassList[],MATCH(SUMPRODUCT((tblClassList[HARI]=tblSchedule[[#Headers],[ISNIN]])*($B27>=tblClassList[MASA MULA])*($B27<=tblClassList[MASA TAMAT]),tblClassList[UNIQUE]),tblClassList[UNIQUE],0),2),0)","v":"WR-121"},{"$f":"IFERROR(INDEX(tblClassList[],MATCH(SUMPRODUCT((tblClassList[HARI]=tblSchedule[[#Headers],[SELASA]])*($B27>=tblClassList[MASA MULA])*($B27<=tblClassList[MASA TAMAT]),tblClassList[UNIQUE]),tblClassList[UNIQUE],0),2),0)","v":0},{"$f":"IFERROR(INDEX(tblClassList[],MATCH(SUMPRODUCT((tblClassList[HARI]=tblSchedule[[#Headers],[RABU]])*($B27>=tblClassList[MASA MULA])*($B27<=tblClassList[MASA TAMAT]),tblClassList[UNIQUE]),tblClassList[UNIQUE],0),2),0)","v":"WR-121"},{"$f":"IFERROR(INDEX(tblClassList[],MATCH(SUMPRODUCT((tblClassList[HARI]=tblSchedule[[#Headers],[KHAMIS]])*($B27>=tblClassList[MASA MULA])*($B27<=tblClassList[MASA TAMAT]),tblClassList[UNIQUE]),tblClassList[UNIQUE],0),2),0)","v":0},{"$f":"IFERROR(INDEX(tblClassList[],MATCH(SUMPRODUCT((tblClassList[HARI]=tblSchedule[[#Headers],[JUMAAT]])*($B27>=tblClassList[MASA MULA])*($B27<=tblClassList[MASA TAMAT]),tblClassList[UNIQUE]),tblClassList[UNIQUE],0),2),0)","v":0},{"$f":"IFERROR(INDEX(tblClassList[],MATCH(SUMPRODUCT((tblClassList[HARI]=tblSchedule[[#Headers],[SABTU]])*($B27>=tblClassList[MASA MULA])*($B27<=tblClassList[MASA TAMAT]),tblClassList[UNIQUE]),tblClassList[UNIQUE],0),2),0)","v":0}]
[null,"14:00:00",{"$f":"IFERROR(INDEX(tblClassList[],MATCH(SUMPRODUCT((tblClassList[HARI]=tblSchedule[[#Headers],[AHAD]])*($B28>=tblClassList[MASA MULA])*($B28<=tblClassList[MASA TAMAT]),tblClassList[UNIQUE]),tblClassList[UNIQUE],0),2),0)","v":0},{"$f":"IFERROR(INDEX(tblClassList[],MATCH(SUMPRODUCT((tblClassList[HARI]=tblSchedule[[#Headers],[ISNIN]])*($B28>=tblClassList[MASA MULA])*($B28<=tblClassList[MASA TAMAT]),tblClassList[UNIQUE]),tblClassList[UNIQUE],0),2),0)","v":"WR-121"},{"$f":"IFERROR(INDEX(tblClassList[],MATCH(SUMPRODUCT((tblClassList[HARI]=tblSchedule[[#Headers],[SELASA]])*($B28>=tblClassList[MASA MULA])*($B28<=tblClassList[MASA TAMAT]),tblClassList[UNIQUE]),tblClassList[UNIQUE],0),2),0)","v":0},{"$f":"IFERROR(INDEX(tblClassList[],MATCH(SUMPRODUCT((tblClassList[HARI]=tblSchedule[[#Headers],[RABU]])*($B28>=tblClassList[MASA MULA])*($B28<=tblClassList[MASA TAMAT]),tblClassList[UNIQUE]),tblClassList[UNIQUE],0),2),0)","v":"WR-121"},{"$f":"IFERROR(INDEX(tblClassList[],MATCH(SUMPRODUCT((tblClassList[HARI]=tblSchedule[[#Headers],[KHAMIS]])*($B28>=tblClassList[MASA MULA])*($B28<=tblClassList[MASA TAMAT]),tblClassList[UNIQUE]),tblClassList[UNIQUE],0),2),0)","v":0},{"$f":"IFERROR(INDEX(tblClassList[],MATCH(SUMPRODUCT((tblClassList[HARI]=tblSchedule[[#Headers],[JUMAAT]])*($B28>=tblClassList[MASA MULA])*($B28<=tblClassList[MASA TAMAT]),tblClassList[UNIQUE]),tblClassList[UNIQUE],0),2),0)","v":0},{"$f":"IFERROR(INDEX(tblClassList[],MATCH(SUMPRODUCT((tblClassList[HARI]=tblSchedule[[#Headers],[SABTU]])*($B28>=tblClassList[MASA MULA])*($B28<=tblClassList[MASA TAMAT]),tblClassList[UNIQUE]),tblClassList[UNIQUE],0),2),0)","v":0}]
[null,"14:15:00",{"$f":"IFERROR(INDEX(tblClassList[],MATCH(SUMPRODUCT((tblClassList[HARI]=tblSchedule[[#Headers],[AHAD]])*($B29>=tblClassList[MASA MULA])*($B29<=tblClassList[MASA TAMAT]),tblClassList[UNIQUE]),tblClassList[UNIQUE],0),2),0)","v":0},{"$f":"IFERROR(INDEX(tblClassList[],MATCH(SUMPRODUCT((tblClassList[HARI]=tblSchedule[[#Headers],[ISNIN]])*($B29>=tblClassList[MASA MULA])*($B29<=tblClassList[MASA TAMAT]),tblClassList[UNIQUE]),tblClassList[UNIQUE],0),2),0)","v":0},{"$f":"IFERROR(INDEX(tblClassList[],MATCH(SUMPRODUCT((tblClassList[HARI]=tblSchedule[[#Headers],[SELASA]])*($B29>=tblClassList[MASA MULA])*($B29<=tblClassList[MASA TAMAT]),tblClassList[UNIQUE]),tblClassList[UNIQUE],0),2),0)","v":0},{"$f":"IFERROR(INDEX(tblClassList[],MATCH(SUMPRODUCT((tblClassList[HARI]=tblSchedule[[#Headers],[RABU]])*($B29>=tblClassList[MASA MULA])*($B29<=tblClassList[MASA TAMAT]),tblClassList[UNIQUE]),tblClassList[UNIQUE],0),2),0)","v":0},{"$f":"IFERROR(INDEX(tblClassList[],MATCH(SUMPRODUCT((tblClassList[HARI]=tblSchedule[[#Headers],[KHAMIS]])*($B29>=tblClassList[MASA MULA])*($B29<=tblClassList[MASA TAMAT]),tblClassList[UNIQUE]),tblClassList[UNIQUE],0),2),0)","v":0},{"$f":"IFERROR(INDEX(tblClassList[],MATCH(SUMPRODUCT((tblClassList[HARI]=tblSchedule[[#Headers],[JUMAAT]])*($B29>=tblClassList[MASA MULA])*($B29<=tblClassList[MASA TAMAT]),tblClassList[UNIQUE]),tblClassList[UNIQUE],0),2),0)","v":0},{"$f":"IFERROR(INDEX(tblClassList[],MATCH(SUMPRODUCT((tblClassList[HARI]=tblSchedule[[#Headers],[SABTU]])*($B29>=tblClassList[MASA MULA])*($B29<=tblClassList[MASA TAMAT]),tblClassList[UNIQUE]),tblClassList[UNIQUE],0),2),0)","v":0}]
[null,"14:30:00",{"$f":"IFERROR(INDEX(tblClassList[],MATCH(SUMPRODUCT((tblClassList[HARI]=tblSchedule[[#Headers],[AHAD]])*($B30>=tblClassList[MASA MULA])*($B30<=tblClassList[MASA TAMAT]),tblClassList[UNIQUE]),tblClassList[UNIQUE],0),2),0)","v":0},{"$f":"IFERROR(INDEX(tblClassList[],MATCH(SUMPRODUCT((tblClassList[HARI]=tblSchedule[[#Headers],[ISNIN]])*($B30>=tblClassList[MASA MULA])*($B30<=tblClassList[MASA TAMAT]),tblClassList[UNIQUE]),tblClassList[UNIQUE],0),2),0)","v":0},{"$f":"IFERROR(INDEX(tblClassList[],MATCH(SUMPRODUCT((tblClassList[HARI]=tblSchedule[[#Headers],[SELASA]])*($B30>=tblClassList[MASA MULA])*($B30<=tblClassList[MASA TAMAT]),tblClassList[UNIQUE]),tblClassList[UNIQUE],0),2),0)","v":0},{"$f":"IFERROR(INDEX(tblClassList[],MATCH(SUMPRODUCT((tblClassList[HARI]=tblSchedule[[#Headers],[RABU]])*($B30>=tblClassList[MASA MULA])*($B30<=tblClassList[MASA TAMAT]),tblClassList[UNIQUE]),tblClassList[UNIQUE],0),2),0)","v":0},{"$f":"IFERROR(INDEX(tblClassList[],MATCH(SUMPRODUCT((tblClassList[HARI]=tblSchedule[[#Headers],[KHAMIS]])*($B30>=tblClassList[MASA MULA])*($B30<=tblClassList[MASA TAMAT]),tblClassList[UNIQUE]),tblClassList[UNIQUE],0),2),0)","v":0},{"$f":"IFERROR(INDEX(tblClassList[],MATCH(SUMPRODUCT((tblClassList[HARI]=tblSchedule[[#Headers],[JUMAAT]])*($B30>=tblClassList[MASA MULA])*($B30<=tblClassList[MASA TAMAT]),tblClassList[UNIQUE]),tblClassList[UNIQUE],0),2),0)","v":0},{"$f":"IFERROR(INDEX(tblClassList[],MATCH(SUMPRODUCT((tblClassList[HARI]=tblSchedule[[#Headers],[SABTU]])*($B30>=tblClassList[MASA MULA])*($B30<=tblClassList[MASA TAMAT]),tblClassList[UNIQUE]),tblClassList[UNIQUE],0),2),0)","v":0}]
[null,"14:45:00",{"$f":"IFERROR(INDEX(tblClassList[],MATCH(SUMPRODUCT((tblClassList[HARI]=tblSchedule[[#Headers],[AHAD]])*($B31>=tblClassList[MASA MULA])*($B31<=tblClassList[MASA TAMAT]),tblClassList[UNIQUE]),tblClassList[UNIQUE],0),2),0)","v":0},{"$f":"IFERROR(INDEX(tblClassList[],MATCH(SUMPRODUCT((tblClassList[HARI]=tblSchedule[[#Headers],[ISNIN]])*($B31>=tblClassList[MASA MULA])*($B31<=tblClassList[MASA TAMAT]),tblClassList[UNIQUE]),tblClassList[UNIQUE],0),2),0)","v":0},{"$f":"IFERROR(INDEX(tblClassList[],MATCH(SUMPRODUCT((tblClassList[HARI]=tblSchedule[[#Headers],[SELASA]])*($B31>=tblClassList[MASA MULA])*($B31<=tblClassList[MASA TAMAT]),tblClassList[UNIQUE]),tblClassList[UNIQUE],0),2),0)","v":0},{"$f":"IFERROR(INDEX(tblClassList[],MATCH(SUMPRODUCT((tblClassList[HARI]=tblSchedule[[#Headers],[RABU]])*($B31>=tblClassList[MASA MULA])*($B31<=tblClassList[MASA TAMAT]),tblClassList[UNIQUE]),tblClassList[UNIQUE],0),2),0)","v":0},{"$f":"IFERROR(INDEX(tblClassList[],MATCH(SUMPRODUCT((tblClassList[HARI]=tblSchedule[[#Headers],[KHAMIS]])*($B31>=tblClassList[MASA MULA])*($B31<=tblClassList[MASA TAMAT]),tblClassList[UNIQUE]),tblClassList[UNIQUE],0),2),0)","v":0},{"$f":"IFERROR(INDEX(tblClassList[],MATCH(SUMPRODUCT((tblClassList[HARI]=tblSchedule[[#Headers],[JUMAAT]])*($B31>=tblClassList[MASA MULA])*($B31<=tblClassList[MASA TAMAT]),tblClassList[UNIQUE]),tblClassList[UNIQUE],0),2),0)","v":0},{"$f":"IFERROR(INDEX(tblClassList[],MATCH(SUMPRODUCT((tblClassList[HARI]=tblSchedule[[#Headers],[SABTU]])*($B31>=tblClassList[MASA MULA])*($B31<=tblClassList[MASA TAMAT]),tblClassList[UNIQUE]),tblClassList[UNIQUE],0),2),0)","v":0}]
[null,"15:00:00",{"$f":"IFERROR(INDEX(tblClassList[],MATCH(SUMPRODUCT((tblClassList[HARI]=tblSchedule[[#Headers],[AHAD]])*($B32>=tblClassList[MASA MULA])*($B32<=tblClassList[MASA TAMAT]),tblClassList[UNIQUE]),tblClassList[UNIQUE],0),2),0)","v":0},{"$f":"IFERROR(INDEX(tblClassList[],MATCH(SUMPRODUCT((tblClassList[HARI]=tblSchedule[[#Headers],[ISNIN]])*($B32>=tblClassList[MASA MULA])*($B32<=tblClassList[MASA TAMAT]),tblClassList[UNIQUE]),tblClassList[UNIQUE],0),2),0)","v":0},{"$f":"IFERROR(INDEX(tblClassList[],MATCH(SUMPRODUCT((tblClassList[HARI]=tblSchedule[[#Headers],[SELASA]])*($B32>=tblClassList[MASA MULA])*($B32<=tblClassList[MASA TAMAT]),tblClassList[UNIQUE]),tblClassList[UNIQUE],0),2),0)","v":0},{"$f":"IFERROR(INDEX(tblClassList[],MATCH(SUMPRODUCT((tblClassList[HARI]=tblSchedule[[#Headers],[RABU]])*($B32>=tblClassList[MASA MULA])*($B32<=tblClassList[MASA TAMAT]),tblClassList[UNIQUE]),tblClassList[UNIQUE],0),2),0)","v":0},{"$f":"IFERROR(INDEX(tblClassList[],MATCH(SUMPRODUCT((tblClassList[HARI]=tblSchedule[[#Headers],[KHAMIS]])*($B32>=tblClassList[MASA MULA])*($B32<=tblClassList[MASA TAMAT]),tblClassList[UNIQUE]),tblClassList[UNIQUE],0),2),0)","v":0},{"$f":"IFERROR(INDEX(tblClassList[],MATCH(SUMPRODUCT((tblClassList[HARI]=tblSchedule[[#Headers],[JUMAAT]])*($B32>=tblClassList[MASA MULA])*($B32<=tblClassList[MASA TAMAT]),tblClassList[UNIQUE]),tblClassList[UNIQUE],0),2),0)","v":0},{"$f":"IFERROR(INDEX(tblClassList[],MATCH(SUMPRODUCT((tblClassList[HARI]=tblSchedule[[#Headers],[SABTU]])*($B32>=tblClassList[MASA MULA])*($B32<=tblClassList[MASA TAMAT]),tblClassList[UNIQUE]),tblClassList[UNIQUE],0),2),0)","v":0}]
[null,"15:15:00",{"$f":"IFERROR(INDEX(tblClassList[],MATCH(SUMPRODUCT((tblClassList[HARI]=tblSchedule[[#Headers],[AHAD]])*($B33>=tblClassList[MASA MULA])*($B33<=tblClassList[MASA TAMAT]),tblClassList[UNIQUE]),tblClassList[UNIQUE],0),2),0)","v":0},{"$f":"IFERROR(INDEX(tblClassList[],MATCH(SUMPRODUCT((tblClassList[HARI]=tblSchedule[[#Headers],[ISNIN]])*($B33>=tblClassList[MASA MULA])*($B33<=tblClassList[MASA TAMAT]),tblClassList[UNIQUE]),tblClassList[UNIQUE],0),2),0)","v":0},{"$f":"IFERROR(INDEX(tblClassList[],MATCH(SUMPRODUCT((tblClassList[HARI]=tblSchedule[[#Headers],[SELASA]])*($B33>=tblClassList[MASA MULA])*($B33<=tblClassList[MASA TAMAT]),tblClassList[UNIQUE]),tblClassList[UNIQUE],0),2),0)","v":0},{"$f":"IFERROR(INDEX(tblClassList[],MATCH(SUMPRODUCT((tblClassList[HARI]=tblSchedule[[#Headers],[RABU]])*($B33>=tblClassList[MASA MULA])*($B33<=tblClassList[MASA TAMAT]),tblClassList[UNIQUE]),tblClassList[UNIQUE],0),2),0)","v":0},{"$f":"IFERROR(INDEX(tblClassList[],MATCH(SUMPRODUCT((tblClassList[HARI]=tblSchedule[[#Headers],[KHAMIS]])*($B33>=tblClassList[MASA MULA])*($B33<=tblClassList[MASA TAMAT]),tblClassList[UNIQUE]),tblClassList[UNIQUE],0),2),0)","v":0},{"$f":"IFERROR(INDEX(tblClassList[],MATCH(SUMPRODUCT((tblClassList[HARI]=tblSchedule[[#Headers],[JUMAAT]])*($B33>=tblClassList[MASA MULA])*($B33<=tblClassList[MASA TAMAT]),tblClassList[UNIQUE]),tblClassList[UNIQUE],0),2),0)","v":0},{"$f":"IFERROR(INDEX(tblClassList[],MATCH(SUMPRODUCT((tblClassList[HARI]=tblSchedule[[#Headers],[SABTU]])*($B33>=tblClassList[MASA MULA])*($B33<=tblClassList[MASA TAMAT]),tblClassList[UNIQUE]),tblClassList[UNIQUE],0),2),0)","v":0}]
[null,"15:30:00",{"$f":"IFERROR(INDEX(tblClassList[],MATCH(SUMPRODUCT((tblClassList[HARI]=tblSchedule[[#Headers],[AHAD]])*($B34>=tblClassList[MASA MULA])*($B34<=tblClassList[MASA TAMAT]),tblClassList[UNIQUE]),tblClassList[UNIQUE],0),2),0)","v":0},{"$f":"IFERROR(INDEX(tblClassList[],MATCH(SUMPRODUCT((tblClassList[HARI]=tblSchedule[[#Headers],[ISNIN]])*($B34>=tblClassList[MASA MULA])*($B34<=tblClassList[MASA TAMAT]),tblClassList[UNIQUE]),tblClassList[UNIQUE],0),2),0)","v":0},{"$f":"IFERROR(INDEX(tblClassList[],MATCH(SUMPRODUCT((tblClassList[HARI]=tblSchedule[[#Headers],[SELASA]])*($B34>=tblClassList[MASA MULA])*($B34<=tblClassList[MASA TAMAT]),tblClassList[UNIQUE]),tblClassList[UNIQUE],0),2),0)","v":0},{"$f":"IFERROR(INDEX(tblClassList[],MATCH(SUMPRODUCT((tblClassList[HARI]=tblSchedule[[#Headers],[RABU]])*($B34>=tblClassList[MASA MULA])*($B34<=tblClassList[MASA TAMAT]),tblClassList[UNIQUE]),tblClassList[UNIQUE],0),2),0)","v":0},{"$f":"IFERROR(INDEX(tblClassList[],MATCH(SUMPRODUCT((tblClassList[HARI]=tblSchedule[[#Headers],[KHAMIS]])*($B34>=tblClassList[MASA MULA])*($B34<=tblClassList[MASA TAMAT]),tblClassList[UNIQUE]),tblClassList[UNIQUE],0),2),0)","v":0},{"$f":"IFERROR(INDEX(tblClassList[],MATCH(SUMPRODUCT((tblClassList[HARI]=tblSchedule[[#Headers],[JUMAAT]])*($B34>=tblClassList[MASA MULA])*($B34<=tblClassList[MASA TAMAT]),tblClassList[UNIQUE]),tblClassList[UNIQUE],0),2),0)","v":0},{"$f":"IFERROR(INDEX(tblClassList[],MATCH(SUMPRODUCT((tblClassList[HARI]=tblSchedule[[#Headers],[SABTU]])*($B34>=tblClassList[MASA MULA])*($B34<=tblClassList[MASA TAMAT]),tblClassList[UNIQUE]),tblClassList[UNIQUE],0),2),0)","v":0}]
[null,"15:45:00",{"$f":"IFERROR(INDEX(tblClassList[],MATCH(SUMPRODUCT((tblClassList[HARI]=tblSchedule[[#Headers],[AHAD]])*($B35>=tblClassList[MASA MULA])*($B35<=tblClassList[MASA TAMAT]),tblClassList[UNIQUE]),tblClassList[UNIQUE],0),2),0)","v":0},{"$f":"IFERROR(INDEX(tblClassList[],MATCH(SUMPRODUCT((tblClassList[HARI]=tblSchedule[[#Headers],[ISNIN]])*($B35>=tblClassList[MASA MULA])*($B35<=tblClassList[MASA TAMAT]),tblClassList[UNIQUE]),tblClassList[UNIQUE],0),2),0)","v":0},{"$f":"IFERROR(INDEX(tblClassList[],MATCH(SUMPRODUCT((tblClassList[HARI]=tblSchedule[[#Headers],[SELASA]])*($B35>=tblClassList[MASA MULA])*($B35<=tblClassList[MASA TAMAT]),tblClassList[UNIQUE]),tblClassList[UNIQUE],0),2),0)","v":0},{"$f":"IFERROR(INDEX(tblClassList[],MATCH(SUMPRODUCT((tblClassList[HARI]=tblSchedule[[#Headers],[RABU]])*($B35>=tblClassList[MASA MULA])*($B35<=tblClassList[MASA TAMAT]),tblClassList[UNIQUE]),tblClassList[UNIQUE],0),2),0)","v":0},{"$f":"IFERROR(INDEX(tblClassList[],MATCH(SUMPRODUCT((tblClassList[HARI]=tblSchedule[[#Headers],[KHAMIS]])*($B35>=tblClassList[MASA MULA])*($B35<=tblClassList[MASA TAMAT]),tblClassList[UNIQUE]),tblClassList[UNIQUE],0),2),0)","v":0},{"$f":"IFERROR(INDEX(tblClassList[],MATCH(SUMPRODUCT((tblClassList[HARI]=tblSchedule[[#Headers],[JUMAAT]])*($B35>=tblClassList[MASA MULA])*($B35<=tblClassList[MASA TAMAT]),tblClassList[UNIQUE]),tblClassList[UNIQUE],0),2),0)","v":0},{"$f":"IFERROR(INDEX(tblClassList[],MATCH(SUMPRODUCT((tblClassList[HARI]=tblSchedule[[#Headers],[SABTU]])*($B35>=tblClassList[MASA MULA])*($B35<=tblClassList[MASA TAMAT]),tblClassList[UNIQUE]),tblClassList[UNIQUE],0),2),0)","v":0}]
[null,"16:00:00",{"$f":"IFERROR(INDEX(tblClassList[],MATCH(SUMPRODUCT((tblClassList[HARI]=tblSchedule[[#Headers],[AHAD]])*($B36>=tblClassList[MASA MULA])*($B36<=tblClassList[MASA TAMAT]),tblClassList[UNIQUE]),tblClassList[UNIQUE],0),2),0)","v":0},{"$f":"IFERROR(INDEX(tblClassList[],MATCH(SUMPRODUCT((tblClassList[HARI]=tblSchedule[[#Headers],[ISNIN]])*($B36>=tblClassList[MASA MULA])*($B36<=tblClassList[MASA TAMAT]),tblClassList[UNIQUE]),tblClassList[UNIQUE],0),2),0)","v":0},{"$f":"IFERROR(INDEX(tblClassList[],MATCH(SUMPRODUCT((tblClassList[HARI]=tblSchedule[[#Headers],[SELASA]])*($B36>=tblClassList[MASA MULA])*($B36<=tblClassList[MASA TAMAT]),tblClassList[UNIQUE]),tblClassList[UNIQUE],0),2),0)","v":0},{"$f":"IFERROR(INDEX(tblClassList[],MATCH(SUMPRODUCT((tblClassList[HARI]=tblSchedule[[#Headers],[RABU]])*($B36>=tblClassList[MASA MULA])*($B36<=tblClassList[MASA TAMAT]),tblClassList[UNIQUE]),tblClassList[UNIQUE],0),2),0)","v":0},{"$f":"IFERROR(INDEX(tblClassList[],MATCH(SUMPRODUCT((tblClassList[HARI]=tblSchedule[[#Headers],[KHAMIS]])*($B36>=tblClassList[MASA MULA])*($B36<=tblClassList[MASA TAMAT]),tblClassList[UNIQUE]),tblClassList[UNIQUE],0),2),0)","v":0},{"$f":"IFERROR(INDEX(tblClassList[],MATCH(SUMPRODUCT((tblClassList[HARI]=tblSchedule[[#Headers],[JUMAAT]])*($B36>=tblClassList[MASA MULA])*($B36<=tblClassList[MASA TAMAT]),tblClassList[UNIQUE]),tblClassList[UNIQUE],0),2),0)","v":0},{"$f":"IFERROR(INDEX(tblClassList[],MATCH(SUMPRODUCT((tblClassList[HARI]=tblSchedule[[#Headers],[SABTU]])*($B36>=tblClassList[MASA MULA])*($B36<=tblClassList[MASA TAMAT]),tblClassList[UNIQUE]),tblClassList[UNIQUE],0),2),0)","v":0}]
[null,"16:15:00",{"$f":"IFERROR(INDEX(tblClassList[],MATCH(SUMPRODUCT((tblClassList[HARI]=tblSchedule[[#Headers],[AHAD]])*($B37>=tblClassList[MASA MULA])*($B37<=tblClassList[MASA TAMAT]),tblClassList[UNIQUE]),tblClassList[UNIQUE],0),2),0)","v":0},{"$f":"IFERROR(INDEX(tblClassList[],MATCH(SUMPRODUCT((tblClassList[HARI]=tblSchedule[[#Headers],[ISNIN]])*($B37>=tblClassList[MASA MULA])*($B37<=tblClassList[MASA TAMAT]),tblClassList[UNIQUE]),tblClassList[UNIQUE],0),2),0)","v":"SP-111"},{"$f":"IFERROR(INDEX(tblClassList[],MATCH(SUMPRODUCT((tblClassList[HARI]=tblSchedule[[#Headers],[SELASA]])*($B37>=tblClassList[MASA MULA])*($B37<=tblClassList[MASA TAMAT]),tblClassList[UNIQUE]),tblClassList[UNIQUE],0),2),0)","v":0},{"$f":"IFERROR(INDEX(tblClassList[],MATCH(SUMPRODUCT((tblClassList[HARI]=tblSchedule[[#Headers],[RABU]])*($B37>=tblClassList[MASA MULA])*($B37<=tblClassList[MASA TAMAT]),tblClassList[UNIQUE]),tblClassList[UNIQUE],0),2),0)","v":0},{"$f":"IFERROR(INDEX(tblClassList[],MATCH(SUMPRODUCT((tblClassList[HARI]=tblSchedule[[#Headers],[KHAMIS]])*($B37>=tblClassList[MASA MULA])*($B37<=tblClassList[MASA TAMAT]),tblClassList[UNIQUE]),tblClassList[UNIQUE],0),2),0)","v":0},{"$f":"IFERROR(INDEX(tblClassList[],MATCH(SUMPRODUCT((tblClassList[HARI]=tblSchedule[[#Headers],[JUMAAT]])*($B37>=tblClassList[MASA MULA])*($B37<=tblClassList[MASA TAMAT]),tblClassList[UNIQUE]),tblClassList[UNIQUE],0),2),0)","v":0},{"$f":"IFERROR(INDEX(tblClassList[],MATCH(SUMPRODUCT((tblClassList[HARI]=tblSchedule[[#Headers],[SABTU]])*($B37>=tblClassList[MASA MULA])*($B37<=tblClassList[MASA TAMAT]),tblClassList[UNIQUE]),tblClassList[UNIQUE],0),2),0)","v":0}]
[null,"16:30:00",{"$f":"IFERROR(INDEX(tblClassList[],MATCH(SUMPRODUCT((tblClassList[HARI]=tblSchedule[[#Headers],[AHAD]])*($B38>=tblClassList[MASA MULA])*($B38<=tblClassList[MASA TAMAT]),tblClassList[UNIQUE]),tblClassList[UNIQUE],0),2),0)","v":0},{"$f":"IFERROR(INDEX(tblClassList[],MATCH(SUMPRODUCT((tblClassList[HARI]=tblSchedule[[#Headers],[ISNIN]])*($B38>=tblClassList[MASA MULA])*($B38<=tblClassList[MASA TAMAT]),tblClassList[UNIQUE]),tblClassList[UNIQUE],0),2),0)","v":"SP-111"},{"$f":"IFERROR(INDEX(tblClassList[],MATCH(SUMPRODUCT((tblClassList[HARI]=tblSchedule[[#Headers],[SELASA]])*($B38>=tblClassList[MASA MULA])*($B38<=tblClassList[MASA TAMAT]),tblClassList[UNIQUE]),tblClassList[UNIQUE],0),2),0)","v":0},{"$f":"IFERROR(INDEX(tblClassList[],MATCH(SUMPRODUCT((tblClassList[HARI]=tblSchedule[[#Headers],[RABU]])*($B38>=tblClassList[MASA MULA])*($B38<=tblClassList[MASA TAMAT]),tblClassList[UNIQUE]),tblClassList[UNIQUE],0),2),0)","v":0},{"$f":"IFERROR(INDEX(tblClassList[],MATCH(SUMPRODUCT((tblClassList[HARI]=tblSchedule[[#Headers],[KHAMIS]])*($B38>=tblClassList[MASA MULA])*($B38<=tblClassList[MASA TAMAT]),tblClassList[UNIQUE]),tblClassList[UNIQUE],0),2),0)","v":0},{"$f":"IFERROR(INDEX(tblClassList[],MATCH(SUMPRODUCT((tblClassList[HARI]=tblSchedule[[#Headers],[JUMAAT]])*($B38>=tblClassList[MASA MULA])*($B38<=tblClassList[MASA TAMAT]),tblClassList[UNIQUE]),tblClassList[UNIQUE],0),2),0)","v":0},{"$f":"IFERROR(INDEX(tblClassList[],MATCH(SUMPRODUCT((tblClassList[HARI]=tblSchedule[[#Headers],[SABTU]])*($B38>=tblClassList[MASA MULA])*($B38<=tblClassList[MASA TAMAT]),tblClassList[UNIQUE]),tblClassList[UNIQUE],0),2),0)","v":0}]
[null,"16:45:00",{"$f":"IFERROR(INDEX(tblClassList[],MATCH(SUMPRODUCT((tblClassList[HARI]=tblSchedule[[#Headers],[AHAD]])*($B39>=tblClassList[MASA MULA])*($B39<=tblClassList[MASA TAMAT]),tblClassList[UNIQUE]),tblClassList[UNIQUE],0),2),0)","v":0},{"$f":"IFERROR(INDEX(tblClassList[],MATCH(SUMPRODUCT((tblClassList[HARI]=tblSchedule[[#Headers],[ISNIN]])*($B39>=tblClassList[MASA MULA])*($B39<=tblClassList[MASA TAMAT]),tblClassList[UNIQUE]),tblClassList[UNIQUE],0),2),0)","v":"SP-111"},{"$f":"IFERROR(INDEX(tblClassList[],MATCH(SUMPRODUCT((tblClassList[HARI]=tblSchedule[[#Headers],[SELASA]])*($B39>=tblClassList[MASA MULA])*($B39<=tblClassList[MASA TAMAT]),tblClassList[UNIQUE]),tblClassList[UNIQUE],0),2),0)","v":0},{"$f":"IFERROR(INDEX(tblClassList[],MATCH(SUMPRODUCT((tblClassList[HARI]=tblSchedule[[#Headers],[RABU]])*($B39>=tblClassList[MASA MULA])*($B39<=tblClassList[MASA TAMAT]),tblClassList[UNIQUE]),tblClassList[UNIQUE],0),2),0)","v":0},{"$f":"IFERROR(INDEX(tblClassList[],MATCH(SUMPRODUCT((tblClassList[HARI]=tblSchedule[[#Headers],[KHAMIS]])*($B39>=tblClassList[MASA MULA])*($B39<=tblClassList[MASA TAMAT]),tblClassList[UNIQUE]),tblClassList[UNIQUE],0),2),0)","v":0},{"$f":"IFERROR(INDEX(tblClassList[],MATCH(SUMPRODUCT((tblClassList[HARI]=tblSchedule[[#Headers],[JUMAAT]])*($B39>=tblClassList[MASA MULA])*($B39<=tblClassList[MASA TAMAT]),tblClassList[UNIQUE]),tblClassList[UNIQUE],0),2),0)","v":0},{"$f":"IFERROR(INDEX(tblClassList[],MATCH(SUMPRODUCT((tblClassList[HARI]=tblSchedule[[#Headers],[SABTU]])*($B39>=tblClassList[MASA MULA])*($B39<=tblClassList[MASA TAMAT]),tblClassList[UNIQUE]),tblClassList[UNIQUE],0),2),0)","v":0}]
[null,"17:00:00",{"$f":"IFERROR(INDEX(tblClassList[],MATCH(SUMPRODUCT((tblClassList[HARI]=tblSchedule[[#Headers],[AHAD]])*($B40>=tblClassList[MASA MULA])*($B40<=tblClassList[MASA TAMAT]),tblClassList[UNIQUE]),tblClassList[UNIQUE],0),2),0)","v":0},{"$f":"IFERROR(INDEX(tblClassList[],MATCH(SUMPRODUCT((tblClassList[HARI]=tblSchedule[[#Headers],[ISNIN]])*($B40>=tblClassList[MASA MULA])*($B40<=tblClassList[MASA TAMAT]),tblClassList[UNIQUE]),tblClassList[UNIQUE],0),2),0)","v":"SP-111"},{"$f":"IFERROR(INDEX(tblClassList[],MATCH(SUMPRODUCT((tblClassList[HARI]=tblSchedule[[#Headers],[SELASA]])*($B40>=tblClassList[MASA MULA])*($B40<=tblClassList[MASA TAMAT]),tblClassList[UNIQUE]),tblClassList[UNIQUE],0),2),0)","v":0},{"$f":"IFERROR(INDEX(tblClassList[],MATCH(SUMPRODUCT((tblClassList[HARI]=tblSchedule[[#Headers],[RABU]])*($B40>=tblClassList[MASA MULA])*($B40<=tblClassList[MASA TAMAT]),tblClassList[UNIQUE]),tblClassList[UNIQUE],0),2),0)","v":0},{"$f":"IFERROR(INDEX(tblClassList[],MATCH(SUMPRODUCT((tblClassList[HARI]=tblSchedule[[#Headers],[KHAMIS]])*($B40>=tblClassList[MASA MULA])*($B40<=tblClassList[MASA TAMAT]),tblClassList[UNIQUE]),tblClassList[UNIQUE],0),2),0)","v":0},{"$f":"IFERROR(INDEX(tblClassList[],MATCH(SUMPRODUCT((tblClassList[HARI]=tblSchedule[[#Headers],[JUMAAT]])*($B40>=tblClassList[MASA MULA])*($B40<=tblClassList[MASA TAMAT]),tblClassList[UNIQUE]),tblClassList[UNIQUE],0),2),0)","v":0},{"$f":"IFERROR(INDEX(tblClassList[],MATCH(SUMPRODUCT((tblClassList[HARI]=tblSchedule[[#Headers],[SABTU]])*($B40>=tblClassList[MASA MULA])*($B40<=tblClassList[MASA TAMAT]),tblClassList[UNIQUE]),tblClassList[UNIQUE],0),2),0)","v":0}]
[null,"17:15:00",{"$f":"IFERROR(INDEX(tblClassList[],MATCH(SUMPRODUCT((tblClassList[HARI]=tblSchedule[[#Headers],[AHAD]])*($B41>=tblClassList[MASA MULA])*($B41<=tblClassList[MASA TAMAT]),tblClassList[UNIQUE]),tblClassList[UNIQUE],0),2),0)","v":0},{"$f":"IFERROR(INDEX(tblClassList[],MATCH(SUMPRODUCT((tblClassList[HARI]=tblSchedule[[#Headers],[ISNIN]])*($B41>=tblClassList[MASA MULA])*($B41<=tblClassList[MASA TAMAT]),tblClassList[UNIQUE]),tblClassList[UNIQUE],0),2),0)","v":0},{"$f":"IFERROR(INDEX(tblClassList[],MATCH(SUMPRODUCT((tblClassList[HARI]=tblSchedule[[#Headers],[SELASA]])*($B41>=tblClassList[MASA MULA])*($B41<=tblClassList[MASA TAMAT]),tblClassList[UNIQUE]),tblClassList[UNIQUE],0),2),0)","v":0},{"$f":"IFERROR(INDEX(tblClassList[],MATCH(SUMPRODUCT((tblClassList[HARI]=tblSchedule[[#Headers],[RABU]])*($B41>=tblClassList[MASA MULA])*($B41<=tblClassList[MASA TAMAT]),tblClassList[UNIQUE]),tblClassList[UNIQUE],0),2),0)","v":0},{"$f":"IFERROR(INDEX(tblClassList[],MATCH(SUMPRODUCT((tblClassList[HARI]=tblSchedule[[#Headers],[KHAMIS]])*($B41>=tblClassList[MASA MULA])*($B41<=tblClassList[MASA TAMAT]),tblClassList[UNIQUE]),tblClassList[UNIQUE],0),2),0)","v":0},{"$f":"IFERROR(INDEX(tblClassList[],MATCH(SUMPRODUCT((tblClassList[HARI]=tblSchedule[[#Headers],[JUMAAT]])*($B41>=tblClassList[MASA MULA])*($B41<=tblClassList[MASA TAMAT]),tblClassList[UNIQUE]),tblClassList[UNIQUE],0),2),0)","v":0},{"$f":"IFERROR(INDEX(tblClassList[],MATCH(SUMPRODUCT((tblClassList[HARI]=tblSchedule[[#Headers],[SABTU]])*($B41>=tblClassList[MASA MULA])*($B41<=tblClassList[MASA TAMAT]),tblClassList[UNIQUE]),tblClassList[UNIQUE],0),2),0)","v":0}]
[null,"17:30:00",{"$f":"IFERROR(INDEX(tblClassList[],MATCH(SUMPRODUCT((tblClassList[HARI]=tblSchedule[[#Headers],[AHAD]])*($B42>=tblClassList[MASA MULA])*($B42<=tblClassList[MASA TAMAT]),tblClassList[UNIQUE]),tblClassList[UNIQUE],0),2),0)","v":0},{"$f":"IFERROR(INDEX(tblClassList[],MATCH(SUMPRODUCT((tblClassList[HARI]=tblSchedule[[#Headers],[ISNIN]])*($B42>=tblClassList[MASA MULA])*($B42<=tblClassList[MASA TAMAT]),tblClassList[UNIQUE]),tblClassList[UNIQUE],0),2),0)","v":0},{"$f":"IFERROR(INDEX(tblClassList[],MATCH(SUMPRODUCT((tblClassList[HARI]=tblSchedule[[#Headers],[SELASA]])*($B42>=tblClassList[MASA MULA])*($B42<=tblClassList[MASA TAMAT]),tblClassList[UNIQUE]),tblClassList[UNIQUE],0),2),0)","v":0},{"$f":"IFERROR(INDEX(tblClassList[],MATCH(SUMPRODUCT((tblClassList[HARI]=tblSchedule[[#Headers],[RABU]])*($B42>=tblClassList[MASA MULA])*($B42<=tblClassList[MASA TAMAT]),tblClassList[UNIQUE]),tblClassList[UNIQUE],0),2),0)","v":0},{"$f":"IFERROR(INDEX(tblClassList[],MATCH(SUMPRODUCT((tblClassList[HARI]=tblSchedule[[#Headers],[KHAMIS]])*($B42>=tblClassList[MASA MULA])*($B42<=tblClassList[MASA TAMAT]),tblClassList[UNIQUE]),tblClassList[UNIQUE],0),2),0)","v":0},{"$f":"IFERROR(INDEX(tblClassList[],MATCH(SUMPRODUCT((tblClassList[HARI]=tblSchedule[[#Headers],[JUMAAT]])*($B42>=tblClassList[MASA MULA])*($B42<=tblClassList[MASA TAMAT]),tblClassList[UNIQUE]),tblClassList[UNIQUE],0),2),0)","v":0},{"$f":"IFERROR(INDEX(tblClassList[],MATCH(SUMPRODUCT((tblClassList[HARI]=tblSchedule[[#Headers],[SABTU]])*($B42>=tblClassList[MASA MULA])*($B42<=tblClassList[MASA TAMAT]),tblClassList[UNIQUE]),tblClassList[UNIQUE],0),2),0)","v":0}]
[null,"17:45:00",{"$f":"IFERROR(INDEX(tblClassList[],MATCH(SUMPRODUCT((tblClassList[HARI]=tblSchedule[[#Headers],[AHAD]])*($B43>=tblClassList[MASA MULA])*($B43<=tblClassList[MASA TAMAT]),tblClassList[UNIQUE]),tblClassList[UNIQUE],0),2),0)","v":0},{"$f":"IFERROR(INDEX(tblClassList[],MATCH(SUMPRODUCT((tblClassList[HARI]=tblSchedule[[#Headers],[ISNIN]])*($B43>=tblClassList[MASA MULA])*($B43<=tblClassList[MASA TAMAT]),tblClassList[UNIQUE]),tblClassList[UNIQUE],0),2),0)","v":0},{"$f":"IFERROR(INDEX(tblClassList[],MATCH(SUMPRODUCT((tblClassList[HARI]=tblSchedule[[#Headers],[SELASA]])*($B43>=tblClassList[MASA MULA])*($B43<=tblClassList[MASA TAMAT]),tblClassList[UNIQUE]),tblClassList[UNIQUE],0),2),0)","v":0},{"$f":"IFERROR(INDEX(tblClassList[],MATCH(SUMPRODUCT((tblClassList[HARI]=tblSchedule[[#Headers],[RABU]])*($B43>=tblClassList[MASA MULA])*($B43<=tblClassList[MASA TAMAT]),tblClassList[UNIQUE]),tblClassList[UNIQUE],0),2),0)","v":0},{"$f":"IFERROR(INDEX(tblClassList[],MATCH(SUMPRODUCT((tblClassList[HARI]=tblSchedule[[#Headers],[KHAMIS]])*($B43>=tblClassList[MASA MULA])*($B43<=tblClassList[MASA TAMAT]),tblClassList[UNIQUE]),tblClassList[UNIQUE],0),2),0)","v":0},{"$f":"IFERROR(INDEX(tblClassList[],MATCH(SUMPRODUCT((tblClassList[HARI]=tblSchedule[[#Headers],[JUMAAT]])*($B43>=tblClassList[MASA MULA])*($B43<=tblClassList[MASA TAMAT]),tblClassList[UNIQUE]),tblClassList[UNIQUE],0),2),0)","v":0},{"$f":"IFERROR(INDEX(tblClassList[],MATCH(SUMPRODUCT((tblClassList[HARI]=tblSchedule[[#Headers],[SABTU]])*($B43>=tblClassList[MASA MULA])*($B43<=tblClassList[MASA TAMAT]),tblClassList[UNIQUE]),tblClassList[UNIQUE],0),2),0)","v":0}]
[null,"18:00:00",{"$f":"IFERROR(INDEX(tblClassList[],MATCH(SUMPRODUCT((tblClassList[HARI]=tblSchedule[[#Headers],[AHAD]])*($B44>=tblClassList[MASA MULA])*($B44<=tblClassList[MASA TAMAT]),tblClassList[UNIQUE]),tblClassList[UNIQUE],0),2),0)","v":0},{"$f":"IFERROR(INDEX(tblClassList[],MATCH(SUMPRODUCT((tblClassList[HARI]=tblSchedule[[#Headers],[ISNIN]])*($B44>=tblClassList[MASA MULA])*($B44<=tblClassList[MASA TAMAT]),tblClassList[UNIQUE]),tblClassList[UNIQUE],0),2),0)","v":0},{"$f":"IFERROR(INDEX(tblClassList[],MATCH(SUMPRODUCT((tblClassList[HARI]=tblSchedule[[#Headers],[SELASA]])*($B44>=tblClassList[MASA MULA])*($B44<=tblClassList[MASA TAMAT]),tblClassList[UNIQUE]),tblClassList[UNIQUE],0),2),0)","v":0},{"$f":"IFERROR(INDEX(tblClassList[],MATCH(SUMPRODUCT((tblClassList[HARI]=tblSchedule[[#Headers],[RABU]])*($B44>=tblClassList[MASA MULA])*($B44<=tblClassList[MASA TAMAT]),tblClassList[UNIQUE]),tblClassList[UNIQUE],0),2),0)","v":0},{"$f":"IFERROR(INDEX(tblClassList[],MATCH(SUMPRODUCT((tblClassList[HARI]=tblSchedule[[#Headers],[KHAMIS]])*($B44>=tblClassList[MASA MULA])*($B44<=tblClassList[MASA TAMAT]),tblClassList[UNIQUE]),tblClassList[UNIQUE],0),2),0)","v":0},{"$f":"IFERROR(INDEX(tblClassList[],MATCH(SUMPRODUCT((tblClassList[HARI]=tblSchedule[[#Headers],[JUMAAT]])*($B44>=tblClassList[MASA MULA])*($B44<=tblClassList[MASA TAMAT]),tblClassList[UNIQUE]),tblClassList[UNIQUE],0),2),0)","v":0},{"$f":"IFERROR(INDEX(tblClassList[],MATCH(SUMPRODUCT((tblClassList[HARI]=tblSchedule[[#Headers],[SABTU]])*($B44>=tblClassList[MASA MULA])*($B44<=tblClassList[MASA TAMAT]),tblClassList[UNIQUE]),tblClassList[UNIQUE],0),2),0)","v":0}]
[null,"18:15:00",{"$f":"IFERROR(INDEX(tblClassList[],MATCH(SUMPRODUCT((tblClassList[HARI]=tblSchedule[[#Headers],[AHAD]])*($B45>=tblClassList[MASA MULA])*($B45<=tblClassList[MASA TAMAT]),tblClassList[UNIQUE]),tblClassList[UNIQUE],0),2),0)","v":0},{"$f":"IFERROR(INDEX(tblClassList[],MATCH(SUMPRODUCT((tblClassList[HARI]=tblSchedule[[#Headers],[ISNIN]])*($B45>=tblClassList[MASA MULA])*($B45<=tblClassList[MASA TAMAT]),tblClassList[UNIQUE]),tblClassList[UNIQUE],0),2),0)","v":0},{"$f":"IFERROR(INDEX(tblClassList[],MATCH(SUMPRODUCT((tblClassList[HARI]=tblSchedule[[#Headers],[SELASA]])*($B45>=tblClassList[MASA MULA])*($B45<=tblClassList[MASA TAMAT]),tblClassList[UNIQUE]),tblClassList[UNIQUE],0),2),0)","v":0},{"$f":"IFERROR(INDEX(tblClassList[],MATCH(SUMPRODUCT((tblClassList[HARI]=tblSchedule[[#Headers],[RABU]])*($B45>=tblClassList[MASA MULA])*($B45<=tblClassList[MASA TAMAT]),tblClassList[UNIQUE]),tblClassList[UNIQUE],0),2),0)","v":0},{"$f":"IFERROR(INDEX(tblClassList[],MATCH(SUMPRODUCT((tblClassList[HARI]=tblSchedule[[#Headers],[KHAMIS]])*($B45>=tblClassList[MASA MULA])*($B45<=tblClassList[MASA TAMAT]),tblClassList[UNIQUE]),tblClassList[UNIQUE],0),2),0)","v":0},{"$f":"IFERROR(INDEX(tblClassList[],MATCH(SUMPRODUCT((tblClassList[HARI]=tblSchedule[[#Headers],[JUMAAT]])*($B45>=tblClassList[MASA MULA])*($B45<=tblClassList[MASA TAMAT]),tblClassList[UNIQUE]),tblClassList[UNIQUE],0),2),0)","v":0},{"$f":"IFERROR(INDEX(tblClassList[],MATCH(SUMPRODUCT((tblClassList[HARI]=tblSchedule[[#Headers],[SABTU]])*($B45>=tblClassList[MASA MULA])*($B45<=tblClassList[MASA TAMAT]),tblClassList[UNIQUE]),tblClassList[UNIQUE],0),2),0)","v":0}]
[null,"18:30:00",{"$f":"IFERROR(INDEX(tblClassList[],MATCH(SUMPRODUCT((tblClassList[HARI]=tblSchedule[[#Headers],[AHAD]])*($B46>=tblClassList[MASA MULA])*($B46<=tblClassList[MASA TAMAT]),tblClassList[UNIQUE]),tblClassList[UNIQUE],0),2),0)","v":0},{"$f":"IFERROR(INDEX(tblClassList[],MATCH(SUMPRODUCT((tblClassList[HARI]=tblSchedule[[#Headers],[ISNIN]])*($B46>=tblClassList[MASA MULA])*($B46<=tblClassList[MASA TAMAT]),tblClassList[UNIQUE]),tblClassList[UNIQUE],0),2),0)","v":0},{"$f":"IFERROR(INDEX(tblClassList[],MATCH(SUMPRODUCT((tblClassList[HARI]=tblSchedule[[#Headers],[SELASA]])*($B46>=tblClassList[MASA MULA])*($B46<=tblClassList[MASA TAMAT]),tblClassList[UNIQUE]),tblClassList[UNIQUE],0),2),0)","v":0},{"$f":"IFERROR(INDEX(tblClassList[],MATCH(SUMPRODUCT((tblClassList[HARI]=tblSchedule[[#Headers],[RABU]])*($B46>=tblClassList[MASA MULA])*($B46<=tblClassList[MASA TAMAT]),tblClassList[UNIQUE]),tblClassList[UNIQUE],0),2),0)","v":0},{"$f":"IFERROR(INDEX(tblClassList[],MATCH(SUMPRODUCT((tblClassList[HARI]=tblSchedule[[#Headers],[KHAMIS]])*($B46>=tblClassList[MASA MULA])*($B46<=tblClassList[MASA TAMAT]),tblClassList[UNIQUE]),tblClassList[UNIQUE],0),2),0)","v":0},{"$f":"IFERROR(INDEX(tblClassList[],MATCH(SUMPRODUCT((tblClassList[HARI]=tblSchedule[[#Headers],[JUMAAT]])*($B46>=tblClassList[MASA MULA])*($B46<=tblClassList[MASA TAMAT]),tblClassList[UNIQUE]),tblClassList[UNIQUE],0),2),0)","v":0},{"$f":"IFERROR(INDEX(tblClassList[],MATCH(SUMPRODUCT((tblClassList[HARI]=tblSchedule[[#Headers],[SABTU]])*($B46>=tblClassList[MASA MULA])*($B46<=tblClassList[MASA TAMAT]),tblClassList[UNIQUE]),tblClassList[UNIQUE],0),2),0)","v":0}]
[null,"18:45:00",{"$f":"IFERROR(INDEX(tblClassList[],MATCH(SUMPRODUCT((tblClassList[HARI]=tblSchedule[[#Headers],[AHAD]])*($B47>=tblClassList[MASA MULA])*($B47<=tblClassList[MASA TAMAT]),tblClassList[UNIQUE]),tblClassList[UNIQUE],0),2),0)","v":0},{"$f":"IFERROR(INDEX(tblClassList[],MATCH(SUMPRODUCT((tblClassList[HARI]=tblSchedule[[#Headers],[ISNIN]])*($B47>=tblClassList[MASA MULA])*($B47<=tblClassList[MASA TAMAT]),tblClassList[UNIQUE]),tblClassList[UNIQUE],0),2),0)","v":0},{"$f":"IFERROR(INDEX(tblClassList[],MATCH(SUMPRODUCT((tblClassList[HARI]=tblSchedule[[#Headers],[SELASA]])*($B47>=tblClassList[MASA MULA])*($B47<=tblClassList[MASA TAMAT]),tblClassList[UNIQUE]),tblClassList[UNIQUE],0),2),0)","v":0},{"$f":"IFERROR(INDEX(tblClassList[],MATCH(SUMPRODUCT((tblClassList[HARI]=tblSchedule[[#Headers],[RABU]])*($B47>=tblClassList[MASA MULA])*($B47<=tblClassList[MASA TAMAT]),tblClassList[UNIQUE]),tblClassList[UNIQUE],0),2),0)","v":0},{"$f":"IFERROR(INDEX(tblClassList[],MATCH(SUMPRODUCT((tblClassList[HARI]=tblSchedule[[#Headers],[KHAMIS]])*($B47>=tblClassList[MASA MULA])*($B47<=tblClassList[MASA TAMAT]),tblClassList[UNIQUE]),tblClassList[UNIQUE],0),2),0)","v":0},{"$f":"IFERROR(INDEX(tblClassList[],MATCH(SUMPRODUCT((tblClassList[HARI]=tblSchedule[[#Headers],[JUMAAT]])*($B47>=tblClassList[MASA MULA])*($B47<=tblClassList[MASA TAMAT]),tblClassList[UNIQUE]),tblClassList[UNIQUE],0),2),0)","v":0},{"$f":"IFERROR(INDEX(tblClassList[],MATCH(SUMPRODUCT((tblClassList[HARI]=tblSchedule[[#Headers],[SABTU]])*($B47>=tblClassList[MASA MULA])*($B47<=tblClassList[MASA TAMAT]),tblClassList[UNIQUE]),tblClassList[UNIQUE],0),2),0)","v":0}]
[null,"19:00:00",{"$f":"IFERROR(INDEX(tblClassList[],MATCH(SUMPRODUCT((tblClassList[HARI]=tblSchedule[[#Headers],[AHAD]])*($B48>=tblClassList[MASA MULA])*($B48<=tblClassList[MASA TAMAT]),tblClassList[UNIQUE]),tblClassList[UNIQUE],0),2),0)","v":0},{"$f":"IFERROR(INDEX(tblClassList[],MATCH(SUMPRODUCT((tblClassList[HARI]=tblSchedule[[#Headers],[ISNIN]])*($B48>=tblClassList[MASA MULA])*($B48<=tblClassList[MASA TAMAT]),tblClassList[UNIQUE]),tblClassList[UNIQUE],0),2),0)","v":0},{"$f":"IFERROR(INDEX(tblClassList[],MATCH(SUMPRODUCT((tblClassList[HARI]=tblSchedule[[#Headers],[SELASA]])*($B48>=tblClassList[MASA MULA])*($B48<=tblClassList[MASA TAMAT]),tblClassList[UNIQUE]),tblClassList[UNIQUE],0),2),0)","v":0},{"$f":"IFERROR(INDEX(tblClassList[],MATCH(SUMPRODUCT((tblClassList[HARI]=tblSchedule[[#Headers],[RABU]])*($B48>=tblClassList[MASA MULA])*($B48<=tblClassList[MASA TAMAT]),tblClassList[UNIQUE]),tblClassList[UNIQUE],0),2),0)","v":0},{"$f":"IFERROR(INDEX(tblClassList[],MATCH(SUMPRODUCT((tblClassList[HARI]=tblSchedule[[#Headers],[KHAMIS]])*($B48>=tblClassList[MASA MULA])*($B48<=tblClassList[MASA TAMAT]),tblClassList[UNIQUE]),tblClassList[UNIQUE],0),2),0)","v":0},{"$f":"IFERROR(INDEX(tblClassList[],MATCH(SUMPRODUCT((tblClassList[HARI]=tblSchedule[[#Headers],[JUMAAT]])*($B48>=tblClassList[MASA MULA])*($B48<=tblClassList[MASA TAMAT]),tblClassList[UNIQUE]),tblClassList[UNIQUE],0),2),0)","v":0},{"$f":"IFERROR(INDEX(tblClassList[],MATCH(SUMPRODUCT((tblClassList[HARI]=tblSchedule[[#Headers],[SABTU]])*($B48>=tblClassList[MASA MULA])*($B48<=tblClassList[MASA TAMAT]),tblClassList[UNIQUE]),tblClassList[UNIQUE],0),2),0)","v":0}]
[null,"19:15:00",{"$f":"IFERROR(INDEX(tblClassList[],MATCH(SUMPRODUCT((tblClassList[HARI]=tblSchedule[[#Headers],[AHAD]])*($B49>=tblClassList[MASA MULA])*($B49<=tblClassList[MASA TAMAT]),tblClassList[UNIQUE]),tblClassList[UNIQUE],0),2),0)","v":0},{"$f":"IFERROR(INDEX(tblClassList[],MATCH(SUMPRODUCT((tblClassList[HARI]=tblSchedule[[#Headers],[ISNIN]])*($B49>=tblClassList[MASA MULA])*($B49<=tblClassList[MASA TAMAT]),tblClassList[UNIQUE]),tblClassList[UNIQUE],0),2),0)","v":0},{"$f":"IFERROR(INDEX(tblClassList[],MATCH(SUMPRODUCT((tblClassList[HARI]=tblSchedule[[#Headers],[SELASA]])*($B49>=tblClassList[MASA MULA])*($B49<=tblClassList[MASA TAMAT]),tblClassList[UNIQUE]),tblClassList[UNIQUE],0),2),0)","v":0},{"$f":"IFERROR(INDEX(tblClassList[],MATCH(SUMPRODUCT((tblClassList[HARI]=tblSchedule[[#Headers],[RABU]])*($B49>=tblClassList[MASA MULA])*($B49<=tblClassList[MASA TAMAT]),tblClassList[UNIQUE]),tblClassList[UNIQUE],0),2),0)","v":0},{"$f":"IFERROR(INDEX(tblClassList[],MATCH(SUMPRODUCT((tblClassList[HARI]=tblSchedule[[#Headers],[KHAMIS]])*($B49>=tblClassList[MASA MULA])*($B49<=tblClassList[MASA TAMAT]),tblClassList[UNIQUE]),tblClassList[UNIQUE],0),2),0)","v":0},{"$f":"IFERROR(INDEX(tblClassList[],MATCH(SUMPRODUCT((tblClassList[HARI]=tblSchedule[[#Headers],[JUMAAT]])*($B49>=tblClassList[MASA MULA])*($B49<=tblClassList[MASA TAMAT]),tblClassList[UNIQUE]),tblClassList[UNIQUE],0),2),0)","v":0},{"$f":"IFERROR(INDEX(tblClassList[],MATCH(SUMPRODUCT((tblClassList[HARI]=tblSchedule[[#Headers],[SABTU]])*($B49>=tblClassList[MASA MULA])*($B49<=tblClassList[MASA TAMAT]),tblClassList[UNIQUE]),tblClassList[UNIQUE],0),2),0)","v":0}]
[null,"19:30:00",{"$f":"IFERROR(INDEX(tblClassList[],MATCH(SUMPRODUCT((tblClassList[HARI]=tblSchedule[[#Headers],[AHAD]])*($B50>=tblClassList[MASA MULA])*($B50<=tblClassList[MASA TAMAT]),tblClassList[UNIQUE]),tblClassList[UNIQUE],0),2),0)","v":0},{"$f":"IFERROR(INDEX(tblClassList[],MATCH(SUMPRODUCT((tblClassList[HARI]=tblSchedule[[#Headers],[ISNIN]])*($B50>=tblClassList[MASA MULA])*($B50<=tblClassList[MASA TAMAT]),tblClassList[UNIQUE]),tblClassList[UNIQUE],0),2),0)","v":0},{"$f":"IFERROR(INDEX(tblClassList[],MATCH(SUMPRODUCT((tblClassList[HARI]=tblSchedule[[#Headers],[SELASA]])*($B50>=tblClassList[MASA MULA])*($B50<=tblClassList[MASA TAMAT]),tblClassList[UNIQUE]),tblClassList[UNIQUE],0),2),0)","v":0},{"$f":"IFERROR(INDEX(tblClassList[],MATCH(SUMPRODUCT((tblClassList[HARI]=tblSchedule[[#Headers],[RABU]])*($B50>=tblClassList[MASA MULA])*($B50<=tblClassList[MASA TAMAT]),tblClassList[UNIQUE]),tblClassList[UNIQUE],0),2),0)","v":0},{"$f":"IFERROR(INDEX(tblClassList[],MATCH(SUMPRODUCT((tblClassList[HARI]=tblSchedule[[#Headers],[KHAMIS]])*($B50>=tblClassList[MASA MULA])*($B50<=tblClassList[MASA TAMAT]),tblClassList[UNIQUE]),tblClassList[UNIQUE],0),2),0)","v":0},{"$f":"IFERROR(INDEX(tblClassList[],MATCH(SUMPRODUCT((tblClassList[HARI]=tblSchedule[[#Headers],[JUMAAT]])*($B50>=tblClassList[MASA MULA])*($B50<=tblClassList[MASA TAMAT]),tblClassList[UNIQUE]),tblClassList[UNIQUE],0),2),0)","v":0},{"$f":"IFERROR(INDEX(tblClassList[],MATCH(SUMPRODUCT((tblClassList[HARI]=tblSchedule[[#Headers],[SABTU]])*($B50>=tblClassList[MASA MULA])*($B50<=tblClassList[MASA TAMAT]),tblClassList[UNIQUE]),tblClassList[UNIQUE],0),2),0)","v":0}]
[null,"19:45:00",{"$f":"IFERROR(INDEX(tblClassList[],MATCH(SUMPRODUCT((tblClassList[HARI]=tblSchedule[[#Headers],[AHAD]])*($B51>=tblClassList[MASA MULA])*($B51<=tblClassList[MASA TAMAT]),tblClassList[UNIQUE]),tblClassList[UNIQUE],0),2),0)","v":0},{"$f":"IFERROR(INDEX(tblClassList[],MATCH(SUMPRODUCT((tblClassList[HARI]=tblSchedule[[#Headers],[ISNIN]])*($B51>=tblClassList[MASA MULA])*($B51<=tblClassList[MASA TAMAT]),tblClassList[UNIQUE]),tblClassList[UNIQUE],0),2),0)","v":0},{"$f":"IFERROR(INDEX(tblClassList[],MATCH(SUMPRODUCT((tblClassList[HARI]=tblSchedule[[#Headers],[SELASA]])*($B51>=tblClassList[MASA MULA])*($B51<=tblClassList[MASA TAMAT]),tblClassList[UNIQUE]),tblClassList[UNIQUE],0),2),0)","v":0},{"$f":"IFERROR(INDEX(tblClassList[],MATCH(SUMPRODUCT((tblClassList[HARI]=tblSchedule[[#Headers],[RABU]])*($B51>=tblClassList[MASA MULA])*($B51<=tblClassList[MASA TAMAT]),tblClassList[UNIQUE]),tblClassList[UNIQUE],0),2),0)","v":0},{"$f":"IFERROR(INDEX(tblClassList[],MATCH(SUMPRODUCT((tblClassList[HARI]=tblSchedule[[#Headers],[KHAMIS]])*($B51>=tblClassList[MASA MULA])*($B51<=tblClassList[MASA TAMAT]),tblClassList[UNIQUE]),tblClassList[UNIQUE],0),2),0)","v":0},{"$f":"IFERROR(INDEX(tblClassList[],MATCH(SUMPRODUCT((tblClassList[HARI]=tblSchedule[[#Headers],[JUMAAT]])*($B51>=tblClassList[MASA MULA])*($B51<=tblClassList[MASA TAMAT]),tblClassList[UNIQUE]),tblClassList[UNIQUE],0),2),0)","v":0},{"$f":"IFERROR(INDEX(tblClassList[],MATCH(SUMPRODUCT((tblClassList[HARI]=tblSchedule[[#Headers],[SABTU]])*($B51>=tblClassList[MASA MULA])*($B51<=tblClassList[MASA TAMAT]),tblClassList[UNIQUE]),tblClassList[UNIQUE],0),2),0)","v":0}]
[null,"20:00:00",{"$f":"IFERROR(INDEX(tblClassList[],MATCH(SUMPRODUCT((tblClassList[HARI]=tblSchedule[[#Headers],[AHAD]])*($B52>=tblClassList[MASA MULA])*($B52<=tblClassList[MASA TAMAT]),tblClassList[UNIQUE]),tblClassList[UNIQUE],0),2),0)","v":0},{"$f":"IFERROR(INDEX(tblClassList[],MATCH(SUMPRODUCT((tblClassList[HARI]=tblSchedule[[#Headers],[ISNIN]])*($B52>=tblClassList[MASA MULA])*($B52<=tblClassList[MASA TAMAT]),tblClassList[UNIQUE]),tblClassList[UNIQUE],0),2),0)","v":0},{"$f":"IFERROR(INDEX(tblClassList[],MATCH(SUMPRODUCT((tblClassList[HARI]=tblSchedule[[#Headers],[SELASA]])*($B52>=tblClassList[MASA MULA])*($B52<=tblClassList[MASA TAMAT]),tblClassList[UNIQUE]),tblClassList[UNIQUE],0),2),0)","v":0},{"$f":"IFERROR(INDEX(tblClassList[],MATCH(SUMPRODUCT((tblClassList[HARI]=tblSchedule[[#Headers],[RABU]])*($B52>=tblClassList[MASA MULA])*($B52<=tblClassList[MASA TAMAT]),tblClassList[UNIQUE]),tblClassList[UNIQUE],0),2),0)","v":0},{"$f":"IFERROR(INDEX(tblClassList[],MATCH(SUMPRODUCT((tblClassList[HARI]=tblSchedule[[#Headers],[KHAMIS]])*($B52>=tblClassList[MASA MULA])*($B52<=tblClassList[MASA TAMAT]),tblClassList[UNIQUE]),tblClassList[UNIQUE],0),2),0)","v":0},{"$f":"IFERROR(INDEX(tblClassList[],MATCH(SUMPRODUCT((tblClassList[HARI]=tblSchedule[[#Headers],[JUMAAT]])*($B52>=tblClassList[MASA MULA])*($B52<=tblClassList[MASA TAMAT]),tblClassList[UNIQUE]),tblClassList[UNIQUE],0),2),0)","v":0},{"$f":"IFERROR(INDEX(tblClassList[],MATCH(SUMPRODUCT((tblClassList[HARI]=tblSchedule[[#Headers],[SABTU]])*($B52>=tblClassList[MASA MULA])*($B52<=tblClassList[MASA TAMAT]),tblClassList[UNIQUE]),tblClassList[UNIQUE],0),2),0)","v":0}]
[null,"20:15:00",{"$f":"IFERROR(INDEX(tblClassList[],MATCH(SUMPRODUCT((tblClassList[HARI]=tblSchedule[[#Headers],[AHAD]])*($B53>=tblClassList[MASA MULA])*($B53<=tblClassList[MASA TAMAT]),tblClassList[UNIQUE]),tblClassList[UNIQUE],0),2),0)","v":0},{"$f":"IFERROR(INDEX(tblClassList[],MATCH(SUMPRODUCT((tblClassList[HARI]=tblSchedule[[#Headers],[ISNIN]])*($B53>=tblClassList[MASA MULA])*($B53<=tblClassList[MASA TAMAT]),tblClassList[UNIQUE]),tblClassList[UNIQUE],0),2),0)","v":0},{"$f":"IFERROR(INDEX(tblClassList[],MATCH(SUMPRODUCT((tblClassList[HARI]=tblSchedule[[#Headers],[SELASA]])*($B53>=tblClassList[MASA MULA])*($B53<=tblClassList[MASA TAMAT]),tblClassList[UNIQUE]),tblClassList[UNIQUE],0),2),0)","v":0},{"$f":"IFERROR(INDEX(tblClassList[],MATCH(SUMPRODUCT((tblClassList[HARI]=tblSchedule[[#Headers],[RABU]])*($B53>=tblClassList[MASA MULA])*($B53<=tblClassList[MASA TAMAT]),tblClassList[UNIQUE]),tblClassList[UNIQUE],0),2),0)","v":0},{"$f":"IFERROR(INDEX(tblClassList[],MATCH(SUMPRODUCT((tblClassList[HARI]=tblSchedule[[#Headers],[KHAMIS]])*($B53>=tblClassList[MASA MULA])*($B53<=tblClassList[MASA TAMAT]),tblClassList[UNIQUE]),tblClassList[UNIQUE],0),2),0)","v":0},{"$f":"IFERROR(INDEX(tblClassList[],MATCH(SUMPRODUCT((tblClassList[HARI]=tblSchedule[[#Headers],[JUMAAT]])*($B53>=tblClassList[MASA MULA])*($B53<=tblClassList[MASA TAMAT]),tblClassList[UNIQUE]),tblClassList[UNIQUE],0),2),0)","v":0},{"$f":"IFERROR(INDEX(tblClassList[],MATCH(SUMPRODUCT((tblClassList[HARI]=tblSchedule[[#Headers],[SABTU]])*($B53>=tblClassList[MASA MULA])*($B53<=tblClassList[MASA TAMAT]),tblClassList[UNIQUE]),tblClassList[UNIQUE],0),2),0)","v":0}]
[null,"20:30:00",{"$f":"IFERROR(INDEX(tblClassList[],MATCH(SUMPRODUCT((tblClassList[HARI]=tblSchedule[[#Headers],[AHAD]])*($B54>=tblClassList[MASA MULA])*($B54<=tblClassList[MASA TAMAT]),tblClassList[UNIQUE]),tblClassList[UNIQUE],0),2),0)","v":0},{"$f":"IFERROR(INDEX(tblClassList[],MATCH(SUMPRODUCT((tblClassList[HARI]=tblSchedule[[#Headers],[ISNIN]])*($B54>=tblClassList[MASA MULA])*($B54<=tblClassList[MASA TAMAT]),tblClassList[UNIQUE]),tblClassList[UNIQUE],0),2),0)","v":0},{"$f":"IFERROR(INDEX(tblClassList[],MATCH(SUMPRODUCT((tblClassList[HARI]=tblSchedule[[#Headers],[SELASA]])*($B54>=tblClassList[MASA MULA])*($B54<=tblClassList[MASA TAMAT]),tblClassList[UNIQUE]),tblClassList[UNIQUE],0),2),0)","v":0},{"$f":"IFERROR(INDEX(tblClassList[],MATCH(SUMPRODUCT((tblClassList[HARI]=tblSchedule[[#Headers],[RABU]])*($B54>=tblClassList[MASA MULA])*($B54<=tblClassList[MASA TAMAT]),tblClassList[UNIQUE]),tblClassList[UNIQUE],0),2),0)","v":0},{"$f":"IFERROR(INDEX(tblClassList[],MATCH(SUMPRODUCT((tblClassList[HARI]=tblSchedule[[#Headers],[KHAMIS]])*($B54>=tblClassList[MASA MULA])*($B54<=tblClassList[MASA TAMAT]),tblClassList[UNIQUE]),tblClassList[UNIQUE],0),2),0)","v":0},{"$f":"IFERROR(INDEX(tblClassList[],MATCH(SUMPRODUCT((tblClassList[HARI]=tblSchedule[[#Headers],[JUMAAT]])*($B54>=tblClassList[MASA MULA])*($B54<=tblClassList[MASA TAMAT]),tblClassList[UNIQUE]),tblClassList[UNIQUE],0),2),0)","v":0},{"$f":"IFERROR(INDEX(tblClassList[],MATCH(SUMPRODUCT((tblClassList[HARI]=tblSchedule[[#Headers],[SABTU]])*($B54>=tblClassList[MASA MULA])*($B54<=tblClassList[MASA TAMAT]),tblClassList[UNIQUE]),tblClassList[UNIQUE],0),2),0)","v":0}]
[null,"20:45:00",{"$f":"IFERROR(INDEX(tblClassList[],MATCH(SUMPRODUCT((tblClassList[HARI]=tblSchedule[[#Headers],[AHAD]])*($B55>=tblClassList[MASA MULA])*($B55<=tblClassList[MASA TAMAT]),tblClassList[UNIQUE]),tblClassList[UNIQUE],0),2),0)","v":0},{"$f":"IFERROR(INDEX(tblClassList[],MATCH(SUMPRODUCT((tblClassList[HARI]=tblSchedule[[#Headers],[ISNIN]])*($B55>=tblClassList[MASA MULA])*($B55<=tblClassList[MASA TAMAT]),tblClassList[UNIQUE]),tblClassList[UNIQUE],0),2),0)","v":0},{"$f":"IFERROR(INDEX(tblClassList[],MATCH(SUMPRODUCT((tblClassList[HARI]=tblSchedule[[#Headers],[SELASA]])*($B55>=tblClassList[MASA MULA])*($B55<=tblClassList[MASA TAMAT]),tblClassList[UNIQUE]),tblClassList[UNIQUE],0),2),0)","v":0},{"$f":"IFERROR(INDEX(tblClassList[],MATCH(SUMPRODUCT((tblClassList[HARI]=tblSchedule[[#Headers],[RABU]])*($B55>=tblClassList[MASA MULA])*($B55<=tblClassList[MASA TAMAT]),tblClassList[UNIQUE]),tblClassList[UNIQUE],0),2),0)","v":0},{"$f":"IFERROR(INDEX(tblClassList[],MATCH(SUMPRODUCT((tblClassList[HARI]=tblSchedule[[#Headers],[KHAMIS]])*($B55>=tblClassList[MASA MULA])*($B55<=tblClassList[MASA TAMAT]),tblClassList[UNIQUE]),tblClassList[UNIQUE],0),2),0)","v":0},{"$f":"IFERROR(INDEX(tblClassList[],MATCH(SUMPRODUCT((tblClassList[HARI]=tblSchedule[[#Headers],[JUMAAT]])*($B55>=tblClassList[MASA MULA])*($B55<=tblClassList[MASA TAMAT]),tblClassList[UNIQUE]),tblClassList[UNIQUE],0),2),0)","v":0},{"$f":"IFERROR(INDEX(tblClassList[],MATCH(SUMPRODUCT((tblClassList[HARI]=tblSchedule[[#Headers],[SABTU]])*($B55>=tblClassList[MASA MULA])*($B55<=tblClassList[MASA TAMAT]),tblClassList[UNIQUE]),tblClassList[UNIQUE],0),2),0)","v":0}]
[null,"21:00:00",{"$f":"IFERROR(INDEX(tblClassList[],MATCH(SUMPRODUCT((tblClassList[HARI]=tblSchedule[[#Headers],[AHAD]])*($B56>=tblClassList[MASA MULA])*($B56<=tblClassList[MASA TAMAT]),tblClassList[UNIQUE]),tblClassList[UNIQUE],0),2),0)","v":0},{"$f":"IFERROR(INDEX(tblClassList[],MATCH(SUMPRODUCT((tblClassList[HARI]=tblSchedule[[#Headers],[ISNIN]])*($B56>=tblClassList[MASA MULA])*($B56<=tblClassList[MASA TAMAT]),tblClassList[UNIQUE]),tblClassList[UNIQUE],0),2),0)","v":0},{"$f":"IFERROR(INDEX(tblClassList[],MATCH(SUMPRODUCT((tblClassList[HARI]=tblSchedule[[#Headers],[SELASA]])*($B56>=tblClassList[MASA MULA])*($B56<=tblClassList[MASA TAMAT]),tblClassList[UNIQUE]),tblClassList[UNIQUE],0),2),0)","v":0},{"$f":"IFERROR(INDEX(tblClassList[],MATCH(SUMPRODUCT((tblClassList[HARI]=tblSchedule[[#Headers],[RABU]])*($B56>=tblClassList[MASA MULA])*($B56<=tblClassList[MASA TAMAT]),tblClassList[UNIQUE]),tblClassList[UNIQUE],0),2),0)","v":0},{"$f":"IFERROR(INDEX(tblClassList[],MATCH(SUMPRODUCT((tblClassList[HARI]=tblSchedule[[#Headers],[KHAMIS]])*($B56>=tblClassList[MASA MULA])*($B56<=tblClassList[MASA TAMAT]),tblClassList[UNIQUE]),tblClassList[UNIQUE],0),2),0)","v":0},{"$f":"IFERROR(INDEX(tblClassList[],MATCH(SUMPRODUCT((tblClassList[HARI]=tblSchedule[[#Headers],[JUMAAT]])*($B56>=tblClassList[MASA MULA])*($B56<=tblClassList[MASA TAMAT]),tblClassList[UNIQUE]),tblClassList[UNIQUE],0),2),0)","v":0},{"$f":"IFERROR(INDEX(tblClassList[],MATCH(SUMPRODUCT((tblClassList[HARI]=tblSchedule[[#Headers],[SABTU]])*($B56>=tblClassList[MASA MULA])*($B56<=tblClassList[MASA TAMAT]),tblClassList[UNIQUE]),tblClassList[UNIQUE],0),2),0)","v":0}]
[null,"21:15:00",{"$f":"IFERROR(INDEX(tblClassList[],MATCH(SUMPRODUCT((tblClassList[HARI]=tblSchedule[[#Headers],[AHAD]])*($B57>=tblClassList[MASA MULA])*($B57<=tblClassList[MASA TAMAT]),tblClassList[UNIQUE]),tblClassList[UNIQUE],0),2),0)","v":0},{"$f":"IFERROR(INDEX(tblClassList[],MATCH(SUMPRODUCT((tblClassList[HARI]=tblSchedule[[#Headers],[ISNIN]])*($B57>=tblClassList[MASA MULA])*($B57<=tblClassList[MASA TAMAT]),tblClassList[UNIQUE]),tblClassList[UNIQUE],0),2),0)","v":0},{"$f":"IFERROR(INDEX(tblClassList[],MATCH(SUMPRODUCT((tblClassList[HARI]=tblSchedule[[#Headers],[SELASA]])*($B57>=tblClassList[MASA MULA])*($B57<=tblClassList[MASA TAMAT]),tblClassList[UNIQUE]),tblClassList[UNIQUE],0),2),0)","v":0},{"$f":"IFERROR(INDEX(tblClassList[],MATCH(SUMPRODUCT((tblClassList[HARI]=tblSchedule[[#Headers],[RABU]])*($B57>=tblClassList[MASA MULA])*($B57<=tblClassList[MASA TAMAT]),tblClassList[UNIQUE]),tblClassList[UNIQUE],0),2),0)","v":0},{"$f":"IFERROR(INDEX(tblClassList[],MATCH(SUMPRODUCT((tblClassList[HARI]=tblSchedule[[#Headers],[KHAMIS]])*($B57>=tblClassList[MASA MULA])*($B57<=tblClassList[MASA TAMAT]),tblClassList[UNIQUE]),tblClassList[UNIQUE],0),2),0)","v":0},{"$f":"IFERROR(INDEX(tblClassList[],MATCH(SUMPRODUCT((tblClassList[HARI]=tblSchedule[[#Headers],[JUMAAT]])*($B57>=tblClassList[MASA MULA])*($B57<=tblClassList[MASA TAMAT]),tblClassList[UNIQUE]),tblClassList[UNIQUE],0),2),0)","v":0},{"$f":"IFERROR(INDEX(tblClassList[],MATCH(SUMPRODUCT((tblClassList[HARI]=tblSchedule[[#Headers],[SABTU]])*($B57>=tblClassList[MASA MULA])*($B57<=tblClassList[MASA TAMAT]),tblClassList[UNIQUE]),tblClassList[UNIQUE],0),2),0)","v":0}]
[null,"21:30:00",{"$f":"IFERROR(INDEX(tblClassList[],MATCH(SUMPRODUCT((tblClassList[HARI]=tblSchedule[[#Headers],[AHAD]])*($B58>=tblClassList[MASA MULA])*($B58<=tblClassList[MASA TAMAT]),tblClassList[UNIQUE]),tblClassList[UNIQUE],0),2),0)","v":0},{"$f":"IFERROR(INDEX(tblClassList[],MATCH(SUMPRODUCT((tblClassList[HARI]=tblSchedule[[#Headers],[ISNIN]])*($B58>=tblClassList[MASA MULA])*($B58<=tblClassList[MASA TAMAT]),tblClassList[UNIQUE]),tblClassList[UNIQUE],0),2),0)","v":0},{"$f":"IFERROR(INDEX(tblClassList[],MATCH(SUMPRODUCT((tblClassList[HARI]=tblSchedule[[#Headers],[SELASA]])*($B58>=tblClassList[MASA MULA])*($B58<=tblClassList[MASA TAMAT]),tblClassList[UNIQUE]),tblClassList[UNIQUE],0),2),0)","v":0},{"$f":"IFERROR(INDEX(tblClassList[],MATCH(SUMPRODUCT((tblClassList[HARI]=tblSchedule[[#Headers],[RABU]])*($B58>=tblClassList[MASA MULA])*($B58<=tblClassList[MASA TAMAT]),tblClassList[UNIQUE]),tblClassList[UNIQUE],0),2),0)","v":0},{"$f":"IFERROR(INDEX(tblClassList[],MATCH(SUMPRODUCT((tblClassList[HARI]=tblSchedule[[#Headers],[KHAMIS]])*($B58>=tblClassList[MASA MULA])*($B58<=tblClassList[MASA TAMAT]),tblClassList[UNIQUE]),tblClassList[UNIQUE],0),2),0)","v":0},{"$f":"IFERROR(INDEX(tblClassList[],MATCH(SUMPRODUCT((tblClassList[HARI]=tblSchedule[[#Headers],[JUMAAT]])*($B58>=tblClassList[MASA MULA])*($B58<=tblClassList[MASA TAMAT]),tblClassList[UNIQUE]),tblClassList[UNIQUE],0),2),0)","v":0},{"$f":"IFERROR(INDEX(tblClassList[],MATCH(SUMPRODUCT((tblClassList[HARI]=tblSchedule[[#Headers],[SABTU]])*($B58>=tblClassList[MASA MULA])*($B58<=tblClassList[MASA TAMAT]),tblClassList[UNIQUE]),tblClassList[UNIQUE],0),2),0)","v":0}]
[null,"21:45:00",{"$f":"IFERROR(INDEX(tblClassList[],MATCH(SUMPRODUCT((tblClassList[HARI]=tblSchedule[[#Headers],[AHAD]])*($B59>=tblClassList[MASA MULA])*($B59<=tblClassList[MASA TAMAT]),tblClassList[UNIQUE]),tblClassList[UNIQUE],0),2),0)","v":0},{"$f":"IFERROR(INDEX(tblClassList[],MATCH(SUMPRODUCT((tblClassList[HARI]=tblSchedule[[#Headers],[ISNIN]])*($B59>=tblClassList[MASA MULA])*($B59<=tblClassList[MASA TAMAT]),tblClassList[UNIQUE]),tblClassList[UNIQUE],0),2),0)","v":0},{"$f":"IFERROR(INDEX(tblClassList[],MATCH(SUMPRODUCT((tblClassList[HARI]=tblSchedule[[#Headers],[SELASA]])*($B59>=tblClassList[MASA MULA])*($B59<=tblClassList[MASA TAMAT]),tblClassList[UNIQUE]),tblClassList[UNIQUE],0),2),0)","v":0},{"$f":"IFERROR(INDEX(tblClassList[],MATCH(SUMPRODUCT((tblClassList[HARI]=tblSchedule[[#Headers],[RABU]])*($B59>=tblClassList[MASA MULA])*($B59<=tblClassList[MASA TAMAT]),tblClassList[UNIQUE]),tblClassList[UNIQUE],0),2),0)","v":0},{"$f":"IFERROR(INDEX(tblClassList[],MATCH(SUMPRODUCT((tblClassList[HARI]=tblSchedule[[#Headers],[KHAMIS]])*($B59>=tblClassList[MASA MULA])*($B59<=tblClassList[MASA TAMAT]),tblClassList[UNIQUE]),tblClassList[UNIQUE],0),2),0)","v":0},{"$f":"IFERROR(INDEX(tblClassList[],MATCH(SUMPRODUCT((tblClassList[HARI]=tblSchedule[[#Headers],[JUMAAT]])*($B59>=tblClassList[MASA MULA])*($B59<=tblClassList[MASA TAMAT]),tblClassList[UNIQUE]),tblClassList[UNIQUE],0),2),0)","v":0},{"$f":"IFERROR(INDEX(tblClassList[],MATCH(SUMPRODUCT((tblClassList[HARI]=tblSchedule[[#Headers],[SABTU]])*($B59>=tblClassList[MASA MULA])*($B59<=tblClassList[MASA TAMAT]),tblClassList[UNIQUE]),tblClassList[UNIQUE],0),2),0)","v":0}]
[null,"22:00:00",{"$f":"IFERROR(INDEX(tblClassList[],MATCH(SUMPRODUCT((tblClassList[HARI]=tblSchedule[[#Headers],[AHAD]])*($B60>=tblClassList[MASA MULA])*($B60<=tblClassList[MASA TAMAT]),tblClassList[UNIQUE]),tblClassList[UNIQUE],0),2),0)","v":0},{"$f":"IFERROR(INDEX(tblClassList[],MATCH(SUMPRODUCT((tblClassList[HARI]=tblSchedule[[#Headers],[ISNIN]])*($B60>=tblClassList[MASA MULA])*($B60<=tblClassList[MASA TAMAT]),tblClassList[UNIQUE]),tblClassList[UNIQUE],0),2),0)","v":0},{"$f":"IFERROR(INDEX(tblClassList[],MATCH(SUMPRODUCT((tblClassList[HARI]=tblSchedule[[#Headers],[SELASA]])*($B60>=tblClassList[MASA MULA])*($B60<=tblClassList[MASA TAMAT]),tblClassList[UNIQUE]),tblClassList[UNIQUE],0),2),0)","v":0},{"$f":"IFERROR(INDEX(tblClassList[],MATCH(SUMPRODUCT((tblClassList[HARI]=tblSchedule[[#Headers],[RABU]])*($B60>=tblClassList[MASA MULA])*($B60<=tblClassList[MASA TAMAT]),tblClassList[UNIQUE]),tblClassList[UNIQUE],0),2),0)","v":0},{"$f":"IFERROR(INDEX(tblClassList[],MATCH(SUMPRODUCT((tblClassList[HARI]=tblSchedule[[#Headers],[KHAMIS]])*($B60>=tblClassList[MASA MULA])*($B60<=tblClassList[MASA TAMAT]),tblClassList[UNIQUE]),tblClassList[UNIQUE],0),2),0)","v":0},{"$f":"IFERROR(INDEX(tblClassList[],MATCH(SUMPRODUCT((tblClassList[HARI]=tblSchedule[[#Headers],[JUMAAT]])*($B60>=tblClassList[MASA MULA])*($B60<=tblClassList[MASA TAMAT]),tblClassList[UNIQUE]),tblClassList[UNIQUE],0),2),0)","v":0},{"$f":"IFERROR(INDEX(tblClassList[],MATCH(SUMPRODUCT((tblClassList[HARI]=tblSchedule[[#Headers],[SABTU]])*($B60>=tblClassList[MASA MULA])*($B60<=tblClassList[MASA TAMAT]),tblClassList[UNIQUE]),tblClassList[UNIQUE],0),2),0)","v":0}]
[null,"22:15:00",{"$f":"IFERROR(INDEX(tblClassList[],MATCH(SUMPRODUCT((tblClassList[HARI]=tblSchedule[[#Headers],[AHAD]])*($B61>=tblClassList[MASA MULA])*($B61<=tblClassList[MASA TAMAT]),tblClassList[UNIQUE]),tblClassList[UNIQUE],0),2),0)","v":0},{"$f":"IFERROR(INDEX(tblClassList[],MATCH(SUMPRODUCT((tblClassList[HARI]=tblSchedule[[#Headers],[ISNIN]])*($B61>=tblClassList[MASA MULA])*($B61<=tblClassList[MASA TAMAT]),tblClassList[UNIQUE]),tblClassList[UNIQUE],0),2),0)","v":0},{"$f":"IFERROR(INDEX(tblClassList[],MATCH(SUMPRODUCT((tblClassList[HARI]=tblSchedule[[#Headers],[SELASA]])*($B61>=tblClassList[MASA MULA])*($B61<=tblClassList[MASA TAMAT]),tblClassList[UNIQUE]),tblClassList[UNIQUE],0),2),0)","v":0},{"$f":"IFERROR(INDEX(tblClassList[],MATCH(SUMPRODUCT((tblClassList[HARI]=tblSchedule[[#Headers],[RABU]])*($B61>=tblClassList[MASA MULA])*($B61<=tblClassList[MASA TAMAT]),tblClassList[UNIQUE]),tblClassList[UNIQUE],0),2),0)","v":0},{"$f":"IFERROR(INDEX(tblClassList[],MATCH(SUMPRODUCT((tblClassList[HARI]=tblSchedule[[#Headers],[KHAMIS]])*($B61>=tblClassList[MASA MULA])*($B61<=tblClassList[MASA TAMAT]),tblClassList[UNIQUE]),tblClassList[UNIQUE],0),2),0)","v":0},{"$f":"IFERROR(INDEX(tblClassList[],MATCH(SUMPRODUCT((tblClassList[HARI]=tblSchedule[[#Headers],[JUMAAT]])*($B61>=tblClassList[MASA MULA])*($B61<=tblClassList[MASA TAMAT]),tblClassList[UNIQUE]),tblClassList[UNIQUE],0),2),0)","v":0},{"$f":"IFERROR(INDEX(tblClassList[],MATCH(SUMPRODUCT((tblClassList[HARI]=tblSchedule[[#Headers],[SABTU]])*($B61>=tblClassList[MASA MULA])*($B61<=tblClassList[MASA TAMAT]),tblClassList[UNIQUE]),tblClassList[UNIQUE],0),2),0)","v":0}]
[null,"22:30:00",{"$f":"IFERROR(INDEX(tblClassList[],MATCH(SUMPRODUCT((tblClassList[HARI]=tblSchedule[[#Headers],[AHAD]])*($B62>=tblClassList[MASA MULA])*($B62<=tblClassList[MASA TAMAT]),tblClassList[UNIQUE]),tblClassList[UNIQUE],0),2),0)","v":0},{"$f":"IFERROR(INDEX(tblClassList[],MATCH(SUMPRODUCT((tblClassList[HARI]=tblSchedule[[#Headers],[ISNIN]])*($B62>=tblClassList[MASA MULA])*($B62<=tblClassList[MASA TAMAT]),tblClassList[UNIQUE]),tblClassList[UNIQUE],0),2),0)","v":0},{"$f":"IFERROR(INDEX(tblClassList[],MATCH(SUMPRODUCT((tblClassList[HARI]=tblSchedule[[#Headers],[SELASA]])*($B62>=tblClassList[MASA MULA])*($B62<=tblClassList[MASA TAMAT]),tblClassList[UNIQUE]),tblClassList[UNIQUE],0),2),0)","v":0},{"$f":"IFERROR(INDEX(tblClassList[],MATCH(SUMPRODUCT((tblClassList[HARI]=tblSchedule[[#Headers],[RABU]])*($B62>=tblClassList[MASA MULA])*($B62<=tblClassList[MASA TAMAT]),tblClassList[UNIQUE]),tblClassList[UNIQUE],0),2),0)","v":0},{"$f":"IFERROR(INDEX(tblClassList[],MATCH(SUMPRODUCT((tblClassList[HARI]=tblSchedule[[#Headers],[KHAMIS]])*($B62>=tblClassList[MASA MULA])*($B62<=tblClassList[MASA TAMAT]),tblClassList[UNIQUE]),tblClassList[UNIQUE],0),2),0)","v":0},{"$f":"IFERROR(INDEX(tblClassList[],MATCH(SUMPRODUCT((tblClassList[HARI]=tblSchedule[[#Headers],[JUMAAT]])*($B62>=tblClassList[MASA MULA])*($B62<=tblClassList[MASA TAMAT]),tblClassList[UNIQUE]),tblClassList[UNIQUE],0),2),0)","v":0},{"$f":"IFERROR(INDEX(tblClassList[],MATCH(SUMPRODUCT((tblClassList[HARI]=tblSchedule[[#Headers],[SABTU]])*($B62>=tblClassList[MASA MULA])*($B62<=tblClassList[MASA TAMAT]),tblClassList[UNIQUE]),tblClassList[UNIQUE],0),2),0)","v":0}]
[null,"22:45:00",{"$f":"IFERROR(INDEX(tblClassList[],MATCH(SUMPRODUCT((tblClassList[HARI]=tblSchedule[[#Headers],[AHAD]])*($B63>=tblClassList[MASA MULA])*($B63<=tblClassList[MASA TAMAT]),tblClassList[UNIQUE]),tblClassList[UNIQUE],0),2),0)","v":0},{"$f":"IFERROR(INDEX(tblClassList[],MATCH(SUMPRODUCT((tblClassList[HARI]=tblSchedule[[#Headers],[ISNIN]])*($B63>=tblClassList[MASA MULA])*($B63<=tblClassList[MASA TAMAT]),tblClassList[UNIQUE]),tblClassList[UNIQUE],0),2),0)","v":0},{"$f":"IFERROR(INDEX(tblClassList[],MATCH(SUMPRODUCT((tblClassList[HARI]=tblSchedule[[#Headers],[SELASA]])*($B63>=tblClassList[MASA MULA])*($B63<=tblClassList[MASA TAMAT]),tblClassList[UNIQUE]),tblClassList[UNIQUE],0),2),0)","v":0},{"$f":"IFERROR(INDEX(tblClassList[],MATCH(SUMPRODUCT((tblClassList[HARI]=tblSchedule[[#Headers],[RABU]])*($B63>=tblClassList[MASA MULA])*($B63<=tblClassList[MASA TAMAT]),tblClassList[UNIQUE]),tblClassList[UNIQUE],0),2),0)","v":0},{"$f":"IFERROR(INDEX(tblClassList[],MATCH(SUMPRODUCT((tblClassList[HARI]=tblSchedule[[#Headers],[KHAMIS]])*($B63>=tblClassList[MASA MULA])*($B63<=tblClassList[MASA TAMAT]),tblClassList[UNIQUE]),tblClassList[UNIQUE],0),2),0)","v":0},{"$f":"IFERROR(INDEX(tblClassList[],MATCH(SUMPRODUCT((tblClassList[HARI]=tblSchedule[[#Headers],[JUMAAT]])*($B63>=tblClassList[MASA MULA])*($B63<=tblClassList[MASA TAMAT]),tblClassList[UNIQUE]),tblClassList[UNIQUE],0),2),0)","v":0},{"$f":"IFERROR(INDEX(tblClassList[],MATCH(SUMPRODUCT((tblClassList[HARI]=tblSchedule[[#Headers],[SABTU]])*($B63>=tblClassList[MASA MULA])*($B63<=tblClassList[MASA TAMAT]),tblClassList[UNIQUE]),tblClassList[UNIQUE],0),2),0)","v":0}]

{"sheet":"Senarai Kelas","index":1,"n_rows":10,"n_cols":8,"rows_kept":10,"merged":[[0,1,0,5],[0,6,0,7]]}
[null,"SENARAI KELAS"]
[null,"KELAS","ID","HARI","LOKASI","MASA MULA","MASA TAMAT","UNIQUE"]
[null,"Penulisan Teknikal","WR-121","ISNIN","Bangunan A","13:00:00","14:00:00",{"$f":"ROW()-ROW(tblClassList[[#Headers],[UNIQUE]])","v":1}]
[null,"Penulisan Teknikal","WR-121","RABU","Bangunan A","13:00:00","14:00:00",{"$f":"ROW()-ROW(tblClassList[[#Headers],[UNIQUE]])","v":2}]
[null,"Pidato Umum","SP-111","ISNIN","Bangunan B","16:00:00","17:00:00",{"$f":"ROW()-ROW(tblClassList[[#Headers],[UNIQUE]])","v":3}]
[null,"Kesihatan & Kecergasan","HPE-295","SELASA","Bangunan B","11:00:00","12:00:00",{"$f":"ROW()-ROW(tblClassList[[#Headers],[UNIQUE]])","v":4}]
[null,"Kesihatan & Kecergasan","HPE-295","KHAMIS","Bangunan B","11:00:00","12:00:00",{"$f":"ROW()-ROW(tblClassList[[#Headers],[UNIQUE]])","v":5}]
[null,"Algebra","MTH-113","ISNIN","Bangunan C","08:10:00","09:15:00",{"$f":"ROW()-ROW(tblClassList[[#Headers],[UNIQUE]])","v":6}]
[null,"Algebra","MTH-113","RABU","Bangunan C","08:10:00","09:15:00",{"$f":"ROW()-ROW(tblClassList[[#Headers],[UNIQUE]])","v":7}]
[null,"Algebra","MTH-113","JUMAAT","Bangunan C","08:10:00","09:15:00",{"$f":"ROW()-ROW(tblClassList[[#Headers],[UNIQUE]])","v":8}]